Cogmind - Beta 13 *** ADVENTURER MODE // 2024.04.29 @ 03:57:55 // Winter2019/RPGLIKE Player: Big Tortoise Result: Destroyed by P-80 Master with Gamma Rifle Performance ------------- Evolutions (9) 4500 Regions Visited (33) 6600 Robots Destroyed (637) 3185 Value Destroyed (39057) 39057 Prototype IDs (121) 2420 Alien Tech Used (15) 3000 Bonus (42903) 42903 TOTAL SCORE: 101665 Bonus ------- Triggered High Security 1000 High Alert Combat Kills 13390 Follower Combat Kills 1830 Network Hubs Disabled 600 Met Data Miner 300 Met Imprinter 300 Destroyed Z-Imprinter 1000 Triggered Deep Caves Wall 500 Met Warlord at Base 500 MAIN.C Attacked Warlord 500 Warlord Defense Kills 2848 Built Enhanced Grunts 300 A7 Reached Mainframe 300 Met R17 at Cetus 500 Met R17 at Research 2000 Met Warlord at Research 2000 Hacked God Mode 5000 Scanned by Researcher 500 Destroyed MAIN.C Guards 500 Met MAIN.C 5000 Destroyed MAIN.C Shell 5000 Friendly Fire -965 Cogmind --------- Core Integrity 0/1600 Matter 3/500 Energy 875/1000 System Corruption 11% Temperature Cool (0) Movement Walking (96) Location -1/Command Parts ------- > --- POWER (3) -------- Improved Quantum Reactor Vortex Chain Reactor > --- PROPULSION (5) --- Biometal Leg Enhanced Biometal Leg Experimental Myomer Leg Experimental Myomer Leg Experimental Biometal Leg (fused) > --- UTILITY (12) ----- Advanced Melee Analysis Suite Experimental Melee Analysis Suite Advanced Target Analyzer Experimental Target Analyzer Energy Filter Femtoactuators Advanced Actuator Array Advanced Phase Shifter Heavy Regenerative Plating (fused) Thermal Barrier AEGIS Remote Shield > --- WEAPON (6) ------- Hellfire Missile Launcher Sigix Broadsword Sigix Broadsword > --- INVENTORY (8) ---- Advanced System Restoration Module Transdimensional Reconstructor Terrabomb Null Cannon Improved Potential Cannon KE Penetrator Peak State ------------ > --- POWER ------------ Improved Quantum Reactor Vortex Chain Reactor > --- PROPULSION ------- Biometal Leg Enhanced Biometal Leg Experimental Myomer Leg Experimental Myomer Leg Experimental Biometal Leg > --- UTILITY ---------- Advanced Melee Analysis Suite Experimental Melee Analysis Suite Advanced Target Analyzer Experimental Target Analyzer Energy Filter Femtoactuators Advanced Actuator Array Advanced Phase Shifter Heavy Regenerative Plating Thermal Barrier AEGIS Remote Shield > --- WEAPON ----------- Null Cannon Hellfire Missile Launcher Sigix Broadsword Sigix Broadsword > --- INVENTORY -------- Advanced System Restoration Module Transdimensional Reconstructor Terrabomb Improved Potential Cannon KE Penetrator [Rating: 254] Favorites ----------- Power Vortex Chain Reactor Engine Improved Deuterium Engine Power Core Light Nuclear Core Reactor Vortex Chain Reactor Propulsion Enhanced Biometal Leg Treads Centrium Heavy Treads Leg Enhanced Biometal Leg Wheel Wheel Hover Unit Aerolev Unit Flight Unit Nuclear Pulse Thruster Utility Advanced Hardlight Generator Device Advanced Hardlight Generator Storage Zionite Biocell Processor Improved Signal Interpreter Hackware Makeshift System Shield Protection Light Regenerative Plating Artifact Core Physics Calibrator Weapon Sigix Broadsword Energy Gun Zionite Laser-M Energy Cannon Matter Neutralizer Ballistic Gun Advanced KE Penetrator Ballistic Cannon Hardcell Cannon Launcher Hellfire Missile Launcher Special Weapon Advanced Remote Datajack Impact Weapon Core Stripper Slashing Weapon Sigix Broadsword Piercing Weapon Vortex Lance Build | -11 -10 -10 -10 -9 -8 -7 -7 -7 -7 -7 -6 -6 -6 -6 -6 -5 -5 -5 -5 -5 -5 -4 -4 -4 -4 -3 -3 -3 -3 -2 -2 -1 -1 ------- Run | Yrd Mat Min Exi Min Mat Fac Low Low Zio Dee Pro Fac Low Low Dat Pro Fac Ext Cet Arc Hub Fac Upp Upp War Pro Res Qua Sec Res Tes Acc Com Slots Evolved 22 | 3 . 1 . 1 3 3 . . . . . 2 . . . 1 . 1 . . . 1 . . . . . 1 1 . 2 1 1 Power 2 | . . . . . . 1 . . . . . . . . . . . . . . . . . . . . . . 1 . . . . Propulsion 4 | 1 . . . . 1 1 . . . . . . . . . . . . . . . . . . . . . . . . 1 . . Utility 11 | 1 . . . 1 2 1 . . . . . 2 . . . 1 . . . . . 1 . . . . . 1 . . . 1 . Weapon 5 | 1 . 1 . . . . . . . . . . . . . . . 1 . . . . . . . . . . . . 1 . 1 Parts Attached 353 | 6 2 4 3 . 17 14 1 . 7 20 1 8 . . . 3 3 7 9 . 18 9 . . 20 3 7 28 69 16 35 22 21 Power 23 | 1 1 . 2 . 2 . 1 . . 3 . 1 . . . . . . 1 . 1 1 . . 1 . . 2 3 . 2 1 . Engine 6 | 1 1 . 1 . 1 . 1 . . 1 . . . . . . . . . . . . . . . . . . . . . . . Core 3 | . . . 1 . 1 . . . . . . . . . . . . . . . . 1 . . . . . . . . . . . Reactor 14 | . . . . . . . . . . 2 . 1 . . . . . . 1 . 1 . . . 1 . . 2 3 . 2 1 . Propulsion 51 | 2 . . . . 5 4 . . . 4 . . . . . . . 4 3 . 4 2 . . 6 . . 2 4 1 2 6 2 Treads 1 | . . . . . . . . . . . . . . . . . . . 1 . . . . . . . . . . . . . . Leg 36 | 2 . . . . 1 . . . . . . . . . . . . 4 2 . 4 2 . . 4 . . 2 4 1 2 6 2 Wheel 2 | . . . . . 1 1 . . . . . . . . . . . . . . . . . . . . . . . . . . . Hover 10 | . . . . . 3 2 . . . 4 . . . . . . . . . . . . . . 1 . . . . . . . . Flight 2 | . . . . . . 1 . . . . . . . . . . . . . . . . . . 1 . . . . . . . . Utility 149 | 1 1 1 . . 4 5 . . 3 12 1 6 . . . 3 2 2 3 . 5 3 . . 8 2 5 10 32 11 11 10 8 Device 93 | 1 1 1 . . 2 3 . . . 9 1 4 . . . 3 . 2 2 . 3 2 . . 4 2 4 6 16 5 8 7 7 Storage 2 | . . . . . . . . . . 1 . . . . . . . . . . . . . . . . . . . . . . 1 Processor 23 | . . . . . 1 1 . . 2 . . . . . . . . . . . 1 1 . . 2 . . 2 5 3 3 2 . Hackware 10 | . . . . . 1 1 . . 1 . . 2 . . . . 1 . . . . . . . 2 . . 1 . . . 1 . Protection 19 | . . . . . . . . . . 2 . . . . . . 1 . 1 . 1 . . . . . 1 1 9 3 . . . Artifact 2 | . . . . . . . . . . . . . . . . . . . . . . . . . . . . . 2 . . . . Weapon 130 | 2 . 3 1 . 6 5 . . 4 1 . 1 . . . . 1 1 2 . 8 3 . . 5 1 2 14 30 4 20 5 11 Energy Gun 16 | 1 . 1 . . 1 2 . . 2 1 . . . . . . . . 1 . 3 1 . . 2 . . . . . 1 . . Energy Cannon 22 | . . . . . . . . . . . . . . . . . . . . . 3 1 . . 1 . . 2 2 . 6 3 4 Ballistic Gun 19 | 1 . 2 1 . 3 3 . . 1 . . 1 . . . . . . 1 . . 1 . . . . . . 2 . 2 . 1 Ballistic Cannon 15 | . . . . . . . . . . . . . . . . . 1 1 . . 2 . . . 1 1 1 1 5 . 2 . . Launcher 14 | . . . . . . . . . . . . . . . . . . . . . . . . . . . . . 8 . 4 . 2 Special Weapon 2 | . . . . . . . . . 1 . . . . . . . . . . . . . . . . . . . . 1 . . . Impact Weapon 5 | . . . . . 1 . . . . . . . . . . . . . . . . . . . . . . 2 1 . 1 . . Slashing Weapon 31 | . . . . . 1 . . . . . . . . . . . . . . . . . . . . . 1 5 12 2 4 2 4 Piercing Weapon 6 | . . . . . . . . . . . . . . . . . . . . . . . . . 1 . . 4 . 1 . . . Special Melee Weapon . | . . . . . . . . . . . . . . . . . . . . . . . . . . . . . . . . . . Unidentified Prototypes 81 | . . . . . 2 1 . . 1 10 . . . . . . . . 4 . 4 2 . . 12 . 2 9 15 5 11 . 3 Corrupted Parts 2 | . . . . . . . . . . . . . . . . . . . . . 2 . . . . . . . . . . . . System Corruption 9 | . . . . . . . . . . . . . . . . . . . . . 9 . . . . . . . . . . . . Parts Lost 7 | . . . . . . 2 . . . . . . . . . . . . . . . 1 . . . . . . 2 . 2 . . Power . | . . . . . . . . . . . . . . . . . . . . . . . . . . . . . . . . . . Propulsion 1 | . . . . . . 1 . . . . . . . . . . . . . . . . . . . . . . . . . . . Utility 4 | . . . . . . 1 . . . . . . . . . . . . . . . . . . . . . . 2 . 1 . . Weapon 1 | . . . . . . . . . . . . . . . . . . . . . . 1 . . . . . . . . . . . Highest Loss Streak 1 | . . . . . . 1 . . . . . . . . . . . . . . . 1 . . . . . . 1 . 1 . . To Critical Strikes 2 | . . . . . . 1 . . . . . . . . . . . . . . . . . . . . . . . . 1 . . Average Slot Usage (%) 91 | . 92 92 100 88 93 89 97 100 100 99 100 99 100 98 94 95 100 99 99 100 99 99 100 100 95 95 94 89 82 80 81 82 83 Engine 2 | . 14 12 12 11 5 . 3 6 6 6 6 5 5 5 5 5 5 5 3 . . . . . . . . . . . . . . Reactor 5 | . . . . . . . . . . 3 6 5 5 5 5 5 5 5 6 10 9 9 5 5 5 5 5 4 6 9 8 7 7 Leg 15 | . 28 25 25 22 12 . . . . . . . . . . . . 9 20 21 21 20 20 20 20 20 20 19 18 18 17 19 19 Hover 5 | . . . . . 9 21 26 26 26 26 26 23 23 23 23 22 22 12 . . . . . . . . . . . . . . . Device 18 | . 21 25 25 22 18 16 20 20 14 17 20 15 17 17 17 19 24 21 20 21 16 20 20 20 16 15 19 18 13 11 18 20 20 Processor 13 | . . . . . 8 13 13 13 15 13 13 11 11 9 5 5 5 5 5 5 8 10 15 15 18 20 15 17 19 24 18 15 15 Hackware 7 | . . . . . 8 4 6 6 9 8 6 16 17 17 17 16 16 15 15 15 15 13 10 10 10 10 10 10 6 4 1 . 2 Protection 2 | . . . . . . . . . . . . . . . . . 2 5 5 5 5 5 5 5 5 5 4 3 3 3 4 4 3 Energy Gun 6 | . 14 12 12 11 8 13 13 13 13 13 13 11 11 11 11 11 11 10 10 10 8 8 5 5 7 10 10 1 . . . . . Energy Cannon 1 | . . . . . . . . . . . . . . . . . . . . . 2 4 5 5 5 5 5 . . . 2 5 4 Ballistic Gun 3 | . 14 17 25 22 15 6 6 6 6 6 6 5 5 5 5 5 3 . 3 5 3 1 5 5 2 . . . . . . . . Ballistic Cannon 1 | . . . . . . . . . . . . . . . . . 1 6 6 5 4 5 5 5 4 5 4 . . . . . . Slashing Weapon 2 | . . . . . 1 . . . . . . . . . . . . . . . . . . . . . . 1 7 9 7 6 6 Naked Turns . | . . . . . . . . . . . . . . . . . . . . . . . . . . . . . . . . . . Heaviest Build 160 | 7 10 14 16 16 21 29 39 39 40 49 47 50 50 50 50 56 62 72 77 77 80 85 85 85 86 88 90 90 121 111 136 140 160 Greatest Support 146 | 25 25 25 25 25 43 44 44 44 44 64 64 64 64 64 64 64 64 85 85 85 118 126 126 126 126 120 120 120 120 120 146 146 146 Greatest Overweight (x) 2 | . . . . . 1 1 . . . 1 . . . . . . . 2 1 . . . . . . . . . 1 . 1 . 1 Average Overweight (x) . | . . . . . . . . . . . . . . . . . . . . . . . . . . . . . . . . . . Largest Inventory Capacity 8 | 1 1 1 1 2 2 2 3 3 3 3 3 3 4 4 4 4 4 4 4 4 4 4 4 4 5 5 6 6 8 8 8 8 8 Average Capacity 4 | 1 1 1 1 1 2 2 2 3 3 3 3 3 3 4 4 4 4 4 4 4 4 4 4 4 4 5 5 6 6 8 8 8 8 Most Carried 8 | . 1 1 1 2 2 2 3 3 3 3 3 3 3 3 3 3 4 4 4 3 4 4 3 3 5 5 6 6 8 8 8 8 8 Average Carried 4 | . . 1 . 1 1 1 2 3 2 2 3 2 3 3 3 2 2 4 3 3 3 2 3 3 4 5 4 5 4 7 7 6 7 Final Capacity 8 | 1 1 1 1 2 2 2 3 3 3 3 3 3 4 4 4 4 4 4 4 4 4 4 4 4 5 5 6 6 8 8 8 8 8 Final Carried 8 | . 1 1 1 2 2 2 3 3 3 3 3 3 3 3 3 2 4 4 3 3 4 3 3 3 5 5 6 6 8 8 8 7 7 Class Distribution -------------------- 27% | Wizard-Gladiator 13% | Hacker-Gladiator 12% | Wizard-Gunner 11% | Hacker-Skirmisher 11% | Wizard-Scout 10% | Hacker-Scout 7% | Wizard-Skirmisher 5% | Wizard-Tank Dominant Class ---------------- Hacker-Skirmisher | -10/Materials Hacker-Skirmisher | -10/Mines Hacker-Skirmisher | -10/Exiles Hacker-Skirmisher | -9/Mines Hacker-Skirmisher | -8/Materials Hacker-Scout | -7/Factory Hacker-Scout | -7/Lower Caves Hacker-Scout | -7/Lower Caves Hacker-Scout | -7/Zion Hacker-Scout | -7/Deep Caves Hacker-Scout | -6/Proximity Caves Wizard-Scout | -6/Factory Wizard-Scout | -6/Lower Caves Wizard-Scout | -6/Lower Caves Wizard-Scout | -6/Data Miner Wizard-Scout | -5/Proximity Caves Wizard-Scout | -5/Factory Wizard-Scout | -5/Extension Wizard-Tank | -5/Cetus Wizard-Tank | -5/Archives Wizard-Tank | -5/Hub_04(d) Wizard-Skirmisher | -4/Factory Wizard-Gunner | -4/Upper Caves Wizard-Gunner | -4/Upper Caves Wizard-Gunner | -4/Warlord Wizard-Gunner | -3/Proximity Caves Wizard-Gunner | -3/Research Wizard-Gladiator | -3/Quarantine Wizard-Gladiator | -3/Section 7 Wizard-Gladiator | -2/Research Hacker-Gladiator | -2/Testing Hacker-Gladiator | -1/Access Wizard-Gladiator | -1/Command Resources | -11 -10 -10 -10 -9 -8 -7 -7 -7 -7 -7 -6 -6 -6 -6 -6 -5 -5 -5 -5 -5 -5 -4 -4 -4 -4 -3 -3 -3 -3 -2 -2 -1 -1 ----------- Run | Yrd Mat Min Exi Min Mat Fac Low Low Zio Dee Pro Fac Low Low Dat Pro Fac Ext Cet Arc Hub Fac Upp Upp War Pro Res Qua Sec Res Tes Acc Com Matter Collected 9835 | 287 128 77 148 28 717 338 68 40 34 378 80 196 32 76 . 178 193 347 282 88 577 731 159 308 354 135 162 292 1457 221 1301 219 204 Remotely . | . . . . . . . . . . . . . . . . . . . . . . . . . . . . . . . . . . Salvage Created 32737 | 188 161 368 221 87 1104 980 121 395 . 712 310 787 376 439 . 1045 923 793 414 146 793 2254 402 890 395 446 221 1517 2754 1818 4473 5939 1265 Parts 1558 | 9 22 24 9 11 64 44 9 10 . 45 33 44 25 18 . 41 36 33 19 4 41 149 9 29 38 15 23 51 177 63 183 246 34 Haulers Intercepted 4 | . . . . . 2 . . . . . . . . . . . . . . . . 1 . . . . . . . . . 1 . Recyclers Shooed 5 | . . 2 . . . 1 . . . . . 1 . . . . . . . . . 1 . . . . . . . . . . . Parts Field Recycled . | . . . . . . . . . . . . . . . . . . . . . . . . . . . . . . . . . . Retrieved Matter . | . . . . . . . . . . . . . . . . . . . . . . . . . . . . . . . . . . Parts Self-Destructed 202 | . . . . . . . 14 13 . . 33 . 19 18 . 46 . . . . . . 12 33 . 14 . . . . . . . Prevented 8 | . . . . . . . 7 . . . . . . . . . . . . . . . 1 . . . . . . . . . . Kills | -11 -10 -10 -10 -9 -8 -7 -7 -7 -7 -7 -6 -6 -6 -6 -6 -5 -5 -5 -5 -5 -5 -4 -4 -4 -4 -3 -3 -3 -3 -2 -2 -1 -1 ------- Run | Yrd Mat Min Exi Min Mat Fac Low Low Zio Dee Pro Fac Low Low Dat Pro Fac Ext Cet Arc Hub Fac Upp Upp War Pro Res Qua Sec Res Tes Acc Com Combat Hostiles Destroyed 590 | . 8 9 . 3 27 17 2 8 . 13 13 12 7 5 . 20 16 12 7 1 14 44 8 17 22 13 7 25 54 24 74 89 19 Melee 196 | . . . . . 3 . . . . . . . . . . . . . . . . . . . . . . 17 38 24 53 54 7 Guns 207 | . 8 9 . 3 24 17 2 8 . 13 13 10 7 5 . 18 12 6 3 1 5 19 5 9 5 4 . 1 . . . . . Cannons 97 | . . . . . . . . . . . . . . . . . 4 5 4 . 9 21 3 7 9 6 6 . 4 . 5 11 3 AOE 63 | . . . . . . . . . . . . 2 . . . . . . . . . . . . 6 3 . . 12 . 16 18 6 Classes Destroyed 30 | 2 3 1 . . 3 3 . . . 2 . 1 1 1 . 1 1 . . . 2 1 . . 2 . . . 4 . 1 1 . Worker 14 | . . . . . . 1 . . . . . . . . . . 1 . . . 1 1 . . . . . . 2 . 5 2 1 Builder 14 | . . . . . 1 . . . . . . 1 . . . . . . . . . 2 . . . . . . 1 . 5 4 . Tunneler 10 | 4 . 1 . 2 . . . . . . . . . . . . . . . . . 2 . . . . 1 . . . . . . Hauler 4 | . . . . . 2 . . . . . . . . . . . . . . . . 1 . . . . . . . . . 1 . Recycler 13 | 1 . 2 . . 1 1 . . . . . 1 . . . . . 1 . . . 1 . . . . . 2 . . 1 2 . Carrier 1 | . . . . . . . . . . . . . . . . . . . . . . . . . . . . . . . . 1 . Minesweeper 1 | . . . . . . . . . . . . . 1 . . . . . . . . . . . . . . . . . . . . Mechanic 4 | . . . . . . . . . . . . . . . . . . . . . . . . . . . . . 1 . . 3 . Operator 14 | . . . . . . . . . . . . 1 . . . . 1 2 . 1 . 1 . . . . 1 2 1 . 1 2 1 Drone 2 | . . . . . . . . . . . . . . . . 2 . . . . . . . . . . . . . . . . . Watcher 18 | . 3 . . . 1 1 . . . . . 2 . . . . 1 1 1 . 1 2 . . . . . . 1 . . 4 . Swarmer 92 | . 3 5 . 3 16 . 1 4 . . 8 4 4 . . 4 5 . . . 1 4 4 6 1 6 . 4 9 . . . . Saboteur 5 | . . . . . . . . . . . . . . . . . . . . . . 2 . . 1 . . . . . . 2 . Grunt 230 | . 5 2 . . 7 10 . 2 . . 4 8 1 3 . 9 3 2 . . 3 20 3 6 8 6 2 8 13 13 36 49 7 Brawler 16 | . . . . . . 1 . 1 . . . . . . . . . . . . . 2 . . 3 . 1 . 2 . 3 3 . Duelist 11 | . . . . . . . . . . . . . . . . . 1 . . . 1 1 . . 1 . . . . . 1 5 1 Protector 9 | . . . . . . . . . . . . . . . . . . . . . 1 . . . 3 . . . . . 2 2 1 Researcher 3 | . . . . . . . . . . . . . . . . . . . . . . . . . . . . . . . 3 . . Sentry 48 | . . 2 . . 3 2 1 1 . . . . . 1 . 2 1 7 . 1 3 3 1 2 . 1 2 . 6 3 2 4 . Demolisher 1 | . . . . . . . . . . . . . . . . . . . . . 1 . . . . . . . . . . . . Specialist 3 | . . . . . . . . . . . . . . . . . . . . . . . . . 1 . . . 2 . . . . Hunter 49 | . . . . . 1 2 . . . . 1 . 2 . . 2 2 1 . . . 6 . 2 . . . 2 3 2 12 7 4 Programmer 72 | . . . . . . 2 . . . . . . . . . 1 4 1 . . 1 5 . . 3 . 2 11 10 . 16 16 . Heavy 3 | . . . . . . . . . . . . . . . . . . . . . . . . . . . . . 1 . . 1 1 Behemoth 5 | . . . . . . . . . . . . . . 1 . . . 1 . . . 1 . 1 . . . . . . . . 1 Cetus Guard 7 | . . . . . . . . . . . . . . . . . . . 7 . . . . . . . . . . . . . . S7 Guard 3 | . . . . . . . . . . . . . . . . . . . . . . . . . . . . . 3 . . . . M Guard 2 | . . . . . . . . . . . . . . . . . . . . . . . . . . . . . . . . . 2 Enhanced Grunt 1 | . . . . . . . . . . . . . . . . . . . . . 1 . . . . . . . . . . . . Lightning 3 | . . . . . . . . . . . . . . . . . . . . . 3 . . . . . . . . . . . . Combat Programmer 1 | . . . . . . . . . . . . . . . . . . . . . . . . . . . . . . . . . 1 Striker 4 | . . . . . . . . . . . . . . . . . . . . . . . . . 1 . . . . 1 2 . . Executioner 5 | . . . . . . . . . . . . . . . . . . . . . . . . . . . . . 4 1 . . . Alpha 7 2 | . . . . . . . . . . . . . . . . . . . . . . . . . . . . . 2 . . . . Z-Light 6 | . . . . . . . . . . 6 . . . . . . . . . . . . . . . . . . . . . . . Assembled 6 | . . . . . . . . . . 6 . . . . . . . . . . . . . . . . . . . . . . . Thug 3 | . . . . . . . . . . . . . . . . . . . . . . . . . . . . . . 3 . . . Best Kill Streak 28 | 4 3 6 . 4 8 11 1 7 . 6 9 7 6 4 . 10 11 5 5 1 4 11 3 14 13 13 2 7 8 7 9 28 8 Combat Bots Only 22 | . 3 5 . 3 8 10 1 7 . 6 9 6 5 4 . 10 9 4 4 1 4 11 3 14 13 13 2 6 6 7 9 22 8 Max Kills in Single Turn 5 | 1 1 1 . 3 2 2 1 1 . 2 2 5 2 1 . 2 2 2 1 1 1 3 1 2 4 4 1 1 5 1 5 5 2 Gunslinging 1 | . . . . 1 1 . . . . 1 1 1 1 . . . . . . . . . . . . . . . . . . . . Exploded 5 | . . . . . . . . . . . . 2 . . . . . . . . . . . . 3 3 . . 4 . 5 4 2 Melee 2 | . . . . . 1 . . . . . . . . . . . . . . . . . . . . . . 1 1 1 1 1 2 Uniques/NPCs Destroyed 3 | . . . . . . . . . . 1 . . . . . . . . . . . . . . . . . . . 1 . . 1 Z-Imprinter (-7/Deep Caves) Warlord (-2/Research) MAIN.C Shell (-1/Command) Combat | -11 -10 -10 -10 -9 -8 -7 -7 -7 -7 -7 -6 -6 -6 -6 -6 -5 -5 -5 -5 -5 -5 -4 -4 -4 -4 -3 -3 -3 -3 -2 -2 -1 -1 -------- Run | Yrd Mat Min Exi Min Mat Fac Low Low Zio Dee Pro Fac Low Low Dat Pro Fac Ext Cet Arc Hub Fac Upp Upp War Pro Res Qua Sec Res Tes Acc Com Hostile Shots Fired 3849 | . 20 42 . 5 137 73 9 14 . 115 31 63 17 58 . 125 64 33 29 3 61 174 33 134 58 113 32 165 577 199 556 535 374 Missed 1342 | . 6 15 . 2 53 33 4 5 . 55 18 23 8 32 . 67 35 18 9 1 18 52 14 43 20 44 15 59 172 43 155 188 135 Damage Taken 20060 | . 103 222 . 17 723 420 21 20 . 623 27 196 31 120 . 268 271 104 181 18 1221 563 32 313 370 159 100 1083 4034 701 3188 2330 2601 Core 14476 | . 78 179 . 14 574 355 14 11 . 508 18 152 25 93 . 205 201 66 129 18 896 392 19 215 279 108 63 808 2974 471 2251 1559 1801 Absorbed by Shields 14299 | . . . . . . 27 . 71 . 471 103 328 72 189 . 463 128 128 165 16 168 856 150 723 234 435 71 501 2546 759 2048 1800 1847 Redirected to Core 13009 | . 64 134 . 7 467 164 14 11 . 402 15 130 16 73 . 168 179 57 93 . 831 377 11 181 262 108 63 762 2748 394 2114 1482 1682 Ignored by Resistances 25747 | . 47 100 . 7 327 183 15 57 . 636 80 296 61 184 . 430 205 147 237 21 515 1044 162 730 468 857 195 1230 3707 1653 4550 4138 3465 Regen/Repaired (Parts) 3718 | . . . . . 87 . . . . . . . . . . . . 6 20 . 126 71 6 17 15 16 9 53 1294 172 628 635 563 Core Remaining (%) 84 | 100 . . . 97 74 . . . . . 100 . . . . 100 . . . . 55 . . . . 100 . . 48 . 88 . . Volleys Fired 802 | 9 36 25 12 4 58 37 2 10 4 42 15 29 10 17 . 37 31 33 14 8 43 74 17 29 22 16 17 6 38 2 43 31 31 Largest 4 | 2 2 3 3 3 3 3 3 3 3 3 3 3 3 3 . 3 3 4 4 4 4 4 4 4 4 4 4 4 2 1 2 2 3 Hottest 413 | 60 60 80 101 101 101 177 177 177 178 182 182 184 184 184 . 184 219 276 276 253 413 323 231 231 256 256 252 252 165 10 250 330 390 Shots Fired 2205 | 18 63 56 36 12 155 91 6 30 6 113 44 87 28 51 . 111 92 101 54 29 161 258 56 109 87 53 49 21 49 2 54 55 68 Gun 1494 | 18 63 56 36 12 155 91 6 30 6 113 44 87 28 51 . 111 79 59 33 21 84 130 29 53 43 22 19 9 . . . . 6 Cannon 652 | . . . . . . . . . . . . . . . . . 13 42 21 8 77 128 27 56 44 31 30 12 29 . 31 55 48 Launcher 57 | . . . . . . . . . . . . . . . . . . . . . . . . . . . . . 20 . 23 . 14 Special 2 | . . . . . . . . . . . . . . . . . . . . . . . . . . . . . . 2 . . . Kinetic 870 | 9 36 31 24 8 119 37 2 10 1 37 15 29 10 17 . 37 31 42 28 16 57 95 30 56 22 15 16 6 26 . 2 . 6 Thermal 1229 | 9 27 25 12 4 26 54 4 20 5 76 29 58 18 34 . 74 61 59 26 13 104 163 26 53 43 32 27 12 3 . 29 55 48 Explosive 57 | . . . . . . . . . . . . . . . . . . . . . . . . . . . . . 20 . 23 . 14 Electromagnetic 10 | . . . . . 10 . . . . . . . . . . . . . . . . . . . . . . . . . . . . Entropic 37 | . . . . . . . . . . . . . . . . . . . . . . . . . 22 6 6 3 . . . . . Robot Hit Streak 46 | 8 16 18 30 5 35 24 22 12 . 11 20 12 16 26 . 19 19 22 38 46 27 32 22 29 39 45 25 34 38 7 34 15 22 Robot Miss Streak 4 | 2 2 4 1 1 2 2 1 1 . 3 2 1 1 2 . 3 2 2 1 1 2 2 2 1 1 3 1 1 1 . 1 2 2 Penetration Max 1 | . . . . . 1 . . . . . . . . . . 1 . . 1 . 1 1 . 1 . . . . . . . . 1 Secondary Targets 39 | . 2 3 . 2 2 7 . . . 5 5 3 2 . . 6 1 . . . . 1 . . . . . . . . . . . Max Gunslinging Chain 2 | . 1 1 . 2 1 1 . . . 1 1 1 1 . . 1 1 . . . . 1 . . . . . . . . . . . Shots Hit Robots 2205 | 11 47 43 26 8 125 78 4 18 . 77 32 56 23 43 . 87 58 76 44 24 104 163 38 64 63 37 38 64 160 68 216 186 124 Core Hits 1093 | 6 21 19 8 5 50 49 4 17 . 28 20 30 13 14 . 37 30 22 17 9 39 94 13 30 55 24 20 19 101 27 120 106 46 Critical Kills 27 | . . . . . . . . . . . . . . . . 1 1 2 3 1 . 9 . 2 1 . 1 1 . . . 3 2 Critical Parts Destroyed 20 | . . . . . 2 . . . . . . 1 . . . 1 . . 3 . 2 2 . 2 5 1 . . . . . . 1 Critical Strikes 187 | . . . 1 . 2 . . . . 2 . 2 . . . 3 2 7 9 2 4 14 3 7 11 4 7 7 16 9 37 28 10 Burn 17 | . . . 1 . . . . . . 2 . 1 . . . 1 . 1 1 . . . 1 1 3 1 4 . . . . . . Meltdown 14 | . . . . . . . . . . . . . . . . . . . . . . 5 . 1 1 . 1 1 . . . 3 2 Destroy 32 | . . . . . 2 . . . . . . 1 . . . 2 2 3 8 1 2 6 . 4 . . . . . . . . 1 Blast 20 | . . . . . . . . . . . . . . . . . . 3 . 1 2 3 2 1 2 2 2 1 1 . . . . Sever 93 | . . . . . . . . . . . . . . . . . . . . . . . . . . . . . 15 9 37 25 7 Detonate 6 | . . . . . . . . . . . . . . . . . . . . . . . . . 5 1 . . . . . . . Sunder 5 | . . . . . . . . . . . . . . . . . . . . . . . . . . . . 5 . . . . . Melee Attacks 746 | . . . . . 5 . . . . . . . . . . . . . . . . . . . . . . 68 150 74 193 179 77 Kinetic 27 | . . . . . . . . . . . . . . . . . . . . . . . . . . . . 27 . . . . . Impact . | . . . . . . . . . . . . . . . . . . . . . . . . . . . . . . . . . . Slashing 682 | . . . . . 5 . . . . . . . . . . . . . . . . . . . . . . 4 150 74 193 179 77 Piercing . | . . . . . . . . . . . . . . . . . . . . . . . . . . . . . . . . . . Entropic 37 | . . . . . . . . . . . . . . . . . . . . . . . . . . . . 37 . . . . . Sneak Attacks 15 | . . . . . . . . . . . . . . . . . . . . . . . . . . . . 3 8 1 2 1 . Combat Hostiles 7 | . . . . . . . . . . . . . . . . . . . . . . . . . . . . . 6 1 . . . Follow-up Attacks 120 | . . . . . . . . . . . . . . . . . . . . . . . . . . . . 11 10 9 44 26 20 Damage Inflicted 131307 | 143 568 535 340 144 2289 1938 80 422 . 1842 761 1997 604 1162 . 2150 2078 3008 1484 784 3774 6572 1259 2309 4691 2099 1820 4609 14679 5712 20807 24333 16314 Guns 30231 | 143 568 535 340 144 2091 1938 80 422 . 1842 761 1600 604 1162 . 2150 1749 1871 942 549 1896 3020 532 1024 2171 749 894 354 . . . . 100 Cannons 25063 | . . . . . . . . . . . . . . . . . 306 1137 542 235 1650 3186 727 1285 1052 856 926 197 891 . 1924 4823 5326 Explosions 22847 | . . . . . . . . . . . . 397 . . . . 23 . . . 228 309 . . 1468 494 . . 3169 . 4664 7059 5036 Melee 53109 | . . . . . 198 . . . . . . . . . . . . . . . . . . . . . . 4058 10619 5712 14219 12451 5852 Ramming 57 | . . . . . . . . . . . . . . . . . . . . . . 57 . . . . . . . . . . . Kinetic 16664 | 65 344 286 201 91 1663 627 19 65 . 596 203 356 152 276 . 670 559 1137 725 408 1230 1979 521 1198 474 395 337 1211 776 . . . 100 Thermal 51274 | 78 224 249 139 53 294 1311 61 357 . 1246 558 1549 452 886 . 1480 1496 1871 759 376 2316 4327 738 1111 2567 1345 965 238 115 . 2862 11882 9369 Explosive 8085 | . . . . . . . . . . . . 92 . . . . . . . . . 105 . . . . . . 3169 . 3726 . 993 Electromagnetic 489 | . . . . . 134 . . . . . . . . . . . 23 . . . 228 104 . . . . . . . . . . . Impact . | . . . . . . . . . . . . . . . . . . . . . . . . . . . . . . . . . . Slashing 49382 | . . . . . 198 . . . . . . . . . . . . . . . . . . . . . . 331 10619 5712 14219 12451 5852 Piercing . | . . . . . . . . . . . . . . . . . . . . . . . . . . . . . . . . . . Entropic 5356 | . . . . . . . . . . . . . . . . . . . . . . . . . 1650 359 518 2829 . . . . . Highest Corruption 27 | . . . . . . . . . . . . . . . . . . . . . 22 1 . . 1 1 2 4 10 3 27 4 10 Average Corruption 7 | . . . . . . . . . . . . . . . . . . . . . 13 1 . . 1 1 1 3 4 2 11 3 4 Corruption Purged 32 | . . . . . . . . . . . . . . . . . . . . . . 1 . . . 1 2 5 16 . . 7 . Corruption Blocked 65 | . . . . . . . . . . . . . . . . . . . . . . . . . . . . . . 35 . . 30 Effects 159 | . . . . . . . . . . . . . . . . . . . . . 29 3 . . . 1 4 3 8 8 82 13 8 Message Errors 44 | . . . . . . . . . . . . . . . . . . . . . 5 1 . . . . . 2 4 2 24 6 . Matter Fused 31 | . . . . . . . . . . . . . . . . . . . . . 8 1 . . . . 1 1 . 3 14 1 2 Heat Flow Errors 17 | . . . . . . . . . . . . . . . . . . . . . 4 . . . . . . . 3 . 7 2 1 Energy Discharges 17 | . . . . . . . . . . . . . . . . . . . . . 3 . . . . . 1 . . 2 8 1 2 Parts Rejected 4 | . . . . . . . . . . . . . . . . . . . . . . . . . . . . . . . 1 2 1 Parts Fused 3 | . . . . . . . . . . . . . . . . . . . . . . . . . . . . . . . 3 . . Data Loss (minor) 12 | . . . . . . . . . . . . . . . . . . . . . 3 . . . . . 1 . . 1 7 . . Data Loss (major) 7 | . . . . . . . . . . . . . . . . . . . . . 1 . . . . 1 . . . . 5 . . Misfires 7 | . . . . . . . . . . . . . . . . . . . . . 1 . . . . . . . . . 4 1 1 Alerts 2 | . . . . . . . . . . . . . . . . . . . . . . . . . . . . . . . 2 . . Misdirections 8 | . . . . . . . . . . . . . . . . . . . . . 1 . . . . . . . . . 7 . . Weapon Failures 7 | . . . . . . . . . . . . . . . . . . . . . 3 1 . . . . 1 . 1 . . . 1 Overload Shots 5 | . . . . . . . . . . . . . . . . . . . . . 2 . . . . . . . . . 3 . . Overflow Damage 8022 | . . . . . 25 . . . . . . 21 . . . . 7 158 . . 22 148 14 32 37 19 31 820 867 315 2122 2641 743 Projectiles 2053 | . . . . . . . . . . . . . . . . . 7 158 . . 22 84 14 32 . 1 31 56 59 . 489 865 235 Explosions 1840 | . . . . . . . . . . . . 21 . . . . . . . . . 31 . . 37 18 . . 112 . 440 813 368 Melee 4129 | . . . . . 25 . . . . . . . . . . . . . . . . 33 . . . . . 764 696 315 1193 963 140 Knockbacks 32 | . . . . . . . . . . . . . . . . . . 1 1 1 7 2 . 6 2 3 1 . 8 . . . . Impact 1 | . . . . . . . . . . . . . . . . . . . . . . 1 . . . . . . . . . . . Kinetic 28 | . . . . . . . . . . . . . . . . . . 1 1 1 7 1 . 3 2 3 1 . 8 . . . . Secondary 3 | . . . . . . . . . . . . . . . . . . . . . . . . 3 . . . . . . . . . Self-Inflicted Damage 902 | . . . . . . . . . . . . . . . . . . . . . 152 . . . . . . . 120 . 497 133 . Shots 25 | . . . . . . . . . . . . . . . . . . . . . 2 . . . . . . . 5 . 10 8 . Rammed . | . . . . . . . . . . . . . . . . . . . . . . . . . . . . . . . . . . Targets Rammed 1 | . . . . . . . . . . . . . . . . . . . . . . 1 . . . . . . . . . . . Kicked 1 | . . . . . . . . . . . . . . . . . . . . . . 1 . . . . . . . . . . . Crushed . | . . . . . . . . . . . . . . . . . . . . . . . . . . . . . . . . . . Highest Temperature 521 | . 3 13 . . 9 521 7 3 2 120 . 10 . . . 3 15 117 132 51 384 250 . 92 . . . 36 271 . 101 101 101 Average Temperature 77 | . 3 13 . . 9 207 7 2 2 36 . 5 . . . 3 4 22 55 33 115 62 . 47 . . . 20 98 . 90 62 20 Received Heat Transfer 2009 | . 48 114 . . 306 132 12 4 . 243 5 101 . 36 . 113 15 24 31 . 13 138 18 149 . . . 76 191 6 2 . 232 Effects 8 | . . . . . . 7 . . . . . . . . . . . . . . 1 . . . . . . . . . . . . Shutdowns 3 | . . . . . . 2 . . . . . . . . . . . . . . 1 . . . . . . . . . . . . Energy Bleed 1 | . . . . . . 1 . . . . . . . . . . . . . . . . . . . . . . . . . . . Matter Decay 1 | . . . . . . 1 . . . . . . . . . . . . . . . . . . . . . . . . . . . Damage (major) 2 | . . . . . . 2 . . . . . . . . . . . . . . . . . . . . . . . . . . . Damage (core) 1 | . . . . . . 1 . . . . . . . . . . . . . . . . . . . . . . . . . . . Siege Activations . | . . . . . . . . . . . . . . . . . . . . . . . . . . . . . . . . . . Robots Corrupted 1 | . . . . . . . . . . . . . . . . . . . . . 1 . . . . . . . . . . . . Combat Hostiles . | . . . . . . . . . . . . . . . . . . . . . . . . . . . . . . . . . . Parts Fried 4 | . . . . . . . . . . . . . . . . . . . . . 3 . . . 1 . . . . . . . . Impact Corruptions 1 | . . . . . . . . . . . . . . . . . . . . . . 1 . . . . . . . . . . . Robots Melted 22 | . . . . . . . . . . . . . . . . 2 . 1 . . . 5 . 1 2 . 1 1 . . . 6 3 Combat Hostiles 21 | . . . . . . . . . . . . . . . . 2 . 1 . . . 4 . 1 2 . 1 1 . . . 6 3 Parts Melted 72 | . . . 1 . . 3 . 1 . 7 . 2 1 2 . 6 4 3 . . . 13 . 3 3 3 2 1 . . 3 8 6 Heat Transferred 44826 | 175 500 525 481 148 814 2574 124 734 . 1672 740 1791 592 1110 . 1961 1554 1998 999 444 1635 4392 851 1295 2084 1436 1258 259 111 . 1546 7840 3183 Parts Sabotaged 4 | . . . . . . . . . . . . . . . . . . . . . . . . . . . . . . . . 3 1 Parts Stolen . | . . . . . . . . . . . . . . . . . . . . . . . . . . . . . . . . . . Parts Stripped 81 | . . . . . . . . . . . . . . . . . . . . . . . . . . . . 81 . . . . . Power Chain Reactions 1 | . . . . . . . . . . . . . . . . . . . . . . 1 . . . . . . . . . . . Alert | -11 -10 -10 -10 -9 -8 -7 -7 -7 -7 -7 -6 -6 -6 -6 -6 -5 -5 -5 -5 -5 -5 -4 -4 -4 -4 -3 -3 -3 -3 -2 -2 -1 -1 ------- Run | Yrd Mat Min Exi Min Mat Fac Low Low Zio Dee Pro Fac Low Low Dat Pro Fac Ext Cet Arc Hub Fac Upp Upp War Pro Res Qua Sec Res Tes Acc Com Peak Influence 3319 | 25 208 285 . 80 574 602 . . . . . 678 . . . . 901 434 348 307 1029 998 . . . . 395 341 811 703 1831 3319 2414 Initial 1866 | . 13 40 . . 26 152 . . . . . 165 . . . . 678 214 117 117 89 294 . . . . 154 93 50 363 270 960 1866 Average 631 | 10 86 206 . 35 249 372 . . . . . 374 . . . . 623 297 261 293 582 550 . . . . 247 183 545 418 904 1669 2162 Maximum Alert Level 5 | . 1 1 . . 2 2 . . . . . 2 . . . . 3 2 1 1 3 3 . . . . 1 1 3 3 5 5 5 Low Security (%) 16 | 100 94 25 . 100 46 14 . . . . . 1 . . . . . 17 12 5 16 . . . . . 39 49 7 1 . . . Level 1 27 | . 5 74 . . 30 33 . . . . . 69 . . . . 19 65 87 94 7 33 . . . . 60 50 15 56 6 . . Level 2 24 | . . . . . 23 52 . . . . . 28 . . . . 25 17 . . 37 39 . . . . . . 52 41 28 . . Level 3 17 | . . . . . . . . . . . . . . . . . 55 . . . 39 27 . . . . . . 24 . 41 19 . Level 4 5 | . . . . . . . . . . . . . . . . . . . . . . . . . . . . . . . 13 43 . Level 5 5 | . . . . . . . . . . . . . . . . . . . . . . . . . . . . . . . 10 10 77 High Security 3 | . . . . . . . . . . . . . . . . . . . . . . . . . . . . . . . . 26 22 Max Security . | . . . . . . . . . . . . . . . . . . . . . . . . . . . . . . . . . . Squads Dispatched 111 | . 1 . . . 7 7 . . . . . 3 . . . . 4 1 . . 5 11 . 1 . . 5 5 10 1 20 24 6 Investigation 26 | . 1 . . . 2 5 . . . . . 2 . . . . 3 . . . . 2 . 1 . . 4 1 . . 4 1 . Extermination 20 | . . . . . . 1 . . . . . 1 . . . . 1 . . . 1 2 . . . . . 2 4 . 6 2 . Reinforcement 25 | . . . . . 2 . . . . . . . . . . . . 1 . . 2 3 . . . . 1 1 4 1 4 2 4 Assault 33 | . . . . . . . . . . . . . . . . . . . . . 2 4 . . . . . . 2 . 4 19 2 Garrison 7 | . . . . . 3 1 . . . . . . . . . . . . . . . . . . . . . 1 . . 2 . . Intercept . | . . . . . . . . . . . . . . . . . . . . . . . . . . . . . . . . . . Searches Triggered 1 | . . . . . . . . . . . . . . . . . 1 . . . . . . . . . . . . . . . . Construction Impeded 3 | . . . . . 1 . . . . . . . . . . . . . . . . 1 . . . . . . 1 . . . . Haulers Reinforced 3 | . . . . . . . . . . . . . . . . . . . . . . 1 . . . . 1 . . 1 . . . Active Scanning Responses . | . . . . . . . . . . . . . . . . . . . . . . . . . . . . . . . . . . Cargo Convoy Interrupts . | . . . . . . . . . . . . . . . . . . . . . . . . . . . . . . . . . . Stealth | -11 -10 -10 -10 -9 -8 -7 -7 -7 -7 -7 -6 -6 -6 -6 -6 -5 -5 -5 -5 -5 -5 -4 -4 -4 -4 -3 -3 -3 -3 -2 -2 -1 -1 --------- Run | Yrd Mat Min Exi Min Mat Fac Low Low Zio Dee Pro Fac Low Low Dat Pro Fac Ext Cet Arc Hub Fac Upp Upp War Pro Res Qua Sec Res Tes Acc Com Distress Signals 30 | . . . . . 3 . . . . . . 1 . . . . . . 2 . 1 5 . . 2 . 3 . 2 4 2 4 1 Communications Jammed . | . . . . . . . . . . . . . . . . . . . . . . . . . . . . . . . . . . Distress Signals . | . . . . . . . . . . . . . . . . . . . . . . . . . . . . . . . . . . Times Spotted 866 | . 13 10 . 3 38 22 3 8 . 51 12 20 6 5 . 25 20 15 10 5 45 56 6 17 36 13 15 40 80 36 104 125 27 Peak Tracking Total 38 | . 2 3 . 3 9 3 2 7 . 38 4 5 3 3 . 13 5 3 5 1 8 6 3 10 15 13 5 6 8 7 10 14 10 Tactical Retreats 36 | . . . . . 1 . . . . . . . 1 . . 1 . . . . 1 1 . . 2 . 1 1 8 7 4 5 3 Traps | -11 -10 -10 -10 -9 -8 -7 -7 -7 -7 -7 -6 -6 -6 -6 -6 -5 -5 -5 -5 -5 -5 -4 -4 -4 -4 -3 -3 -3 -3 -2 -2 -1 -1 ------- Run | Yrd Mat Min Exi Min Mat Fac Low Low Zio Dee Pro Fac Low Low Dat Pro Fac Ext Cet Arc Hub Fac Upp Upp War Pro Res Qua Sec Res Tes Acc Com Traps Triggered 12 | . . . . . 2 1 . . . . . 1 . . . . . . . . 1 1 . . . . . 1 1 . 2 1 1 Indirectly 1 | . . . . . . . . . . . . . . . . . . . . . . 1 . . . . . . . . . . . Trap Hack Attempts . | . . . . . . . . . . . . . . . . . . . . . . . . . . . . . . . . . . Triggered . | . . . . . . . . . . . . . . . . . . . . . . . . . . . . . . . . . . Disarmed 14 | . . . . . . . . . . . . . . . . . 6 . . . . . . . . . . 4 . . . . 4 Reprogrammed 16 | . . . . . 4 . . . . . . . . . . . . 6 . . . . . . . . . . 6 . . . . Reused 3 | . . . . . . . . . . . . . . . . . . . . . . . . . . . . . 3 . . . . Traps Extracted . | . . . . . . . . . . . . . . . . . . . . . . . . . . . . . . . . . . Installed . | . . . . . . . . . . . . . . . . . . . . . . . . . . . . . . . . . . Triggered 18 | . . . . . . . 3 . . . . . . . . . . . . . . . . . 12 . . . 3 . . . . Most Traps Carried 1 | . . . . . . . 1 1 1 1 . . . . . . . . . . . . . . . . . . . . . . . Machines | -11 -10 -10 -10 -9 -8 -7 -7 -7 -7 -7 -6 -6 -6 -6 -6 -5 -5 -5 -5 -5 -5 -4 -4 -4 -4 -3 -3 -3 -3 -2 -2 -1 -1 ---------- Run | Yrd Mat Min Exi Min Mat Fac Low Low Zio Dee Pro Fac Low Low Dat Pro Fac Ext Cet Arc Hub Fac Upp Upp War Pro Res Qua Sec Res Tes Acc Com Machines Disabled 120 | . . . . . 1 . . . . 2 . 17 . . . . 5 2 . 3 17 13 . 5 1 3 . 7 15 . 22 4 3 Max in Single Turn 8 | . . . . . 1 . . . . 1 . 8 . . . . 2 1 . 1 5 4 . 1 1 1 . 1 3 . 2 1 1 Garrison Access 14 | . . . . . . 2 . . . . . 1 . . . . 1 . . . 1 3 . . . . 1 1 1 1 1 1 . Network Hub 3 | . . . . . . . . . . . . . . . . . . . . . 3 . . . . . . . . . . . . Energy Cycler 1 | . . . . . . . . . . . . . . . . . . . . . . . . . . . . . . . . 1 . Machines Repaired . | . . . . . . . . . . . . . . . . . . . . . . . . . . . . . . . . . . Machines Dismantled . | . . . . . . . . . . . . . . . . . . . . . . . . . . . . . . . . . . Machines Sabotaged . | . . . . . . . . . . . . . . . . . . . . . . . . . . . . . . . . . . Overloaded Fab Kills . | . . . . . . . . . . . . . . . . . . . . . . . . . . . . . . . . . . Hacking | -11 -10 -10 -10 -9 -8 -7 -7 -7 -7 -7 -6 -6 -6 -6 -6 -5 -5 -5 -5 -5 -5 -4 -4 -4 -4 -3 -3 -3 -3 -2 -2 -1 -1 --------- Run | Yrd Mat Min Exi Min Mat Fac Low Low Zio Dee Pro Fac Low Low Dat Pro Fac Ext Cet Arc Hub Fac Upp Upp War Pro Res Qua Sec Res Tes Acc Com Machines Accessed 146 | . 7 . 2 . 9 12 . . . . 1 10 . . 4 1 12 5 2 . 9 11 . 1 8 1 5 4 21 1 9 5 6 Terminals 89 | . 6 . . . 6 5 . . . . 1 4 . . . 1 7 5 2 . 8 5 . 1 . 1 4 3 16 . 5 3 6 Fabricators 11 | . . . . . . 2 . . . . . 2 . . . . 2 . . . . 3 . . . . . . . . 2 . . Repair Stations 5 | . . . . . 1 . . . . . . 1 . . . . . . . . . . . . . . . . 2 1 . . . Recycling Units 9 | . 1 . . . 1 3 . . . . . 2 . . . . 1 . . . . . . . . . . . . . . 1 . Scanalyzers 4 | . . . . . . . . . . . . . . . . . 1 . . . . . . . . . . . 2 . 1 . . Garrison Access 14 | . . . . . 1 2 . . . . . 1 . . . . 1 . . . 1 3 . . . . 1 1 1 . 1 1 . Total Hacks 669 | . 27 . 12 . 43 41 . . . . 1 36 . . 32 8 66 22 8 . 47 50 . 8 12 6 37 23 92 2 43 23 30 Successful 476 | . 11 . 12 . 37 27 . . . . 1 25 . . 32 8 57 20 5 . 28 36 . 8 12 6 17 16 64 2 24 13 15 Failed 189 | . 15 . . . 5 14 . . . . . 10 . . . . 9 2 3 . 19 14 . . . . 19 7 28 . 19 10 15 Catastrophic 25 | . . . . . . 1 . . . . . . . . . . 1 . . . 4 1 . . . . 4 1 5 . . 3 5 Database Lockouts 4 | . 1 . . . 1 . . . . . . 1 . . . . . . . . . . . . . . 1 . . . . . . Manual 343 | . 16 . 1 . 41 19 . . 4 . . 21 . . . . 38 11 1 . 30 31 . . 1 . 21 13 49 . 9 17 20 Terminals 498 | . 22 . . . 33 28 . . . . 1 28 . . . 8 46 22 8 . 46 34 . 8 . 6 36 21 69 . 32 20 30 Fabricators 38 | . . . . . . 5 . . . . . 4 . . . . 11 . . . . 11 . . . . . . . . 7 . . Repair Stations 21 | . . . . . 4 . . . . . . 1 . . . . . . . . . . . . . . . . 14 2 . . . Recycling Units 18 | . 5 . . . 4 4 . . . . . 2 . . . . 2 . . . . . . . . . . . . . . 1 . Scanalyzers 15 | . . . . . . . . . . . . . . . . . 5 . . . . . . . . . . . 8 . 2 . . Garrison Access 23 | . . . . . 2 4 . . . . . 1 . . . . 2 . . . 1 5 . . . . 1 2 1 . 2 2 . Terminal Hacks 298 | . 8 . 12 . 17 13 . . . . 1 15 . . 32 8 30 15 5 . 22 16 . 8 12 6 12 12 28 . 11 5 10 Record 67 | . . . 12 . . 1 . . . . 1 . . . 11 8 . 1 4 . 1 . . 8 11 6 . 1 . . . . 2 Part Schematic 20 | . . . . . . 1 . . . . . 2 . . 10 . 2 . . . . . . . . . 3 2 . . . . . Robot Schematic 10 | . . . . . . 1 . . . . . . . . 8 . . . . . . . . . . . . . 1 . . . . Robot Analysis 43 | . 5 . . . 9 . . . . . . 5 . . . . 8 3 . . 2 5 . . . . 1 . 4 . 1 . . Prototype ID Bank 20 | . 1 . . . 1 . . . . . . . . . 3 . 3 4 . . . 2 . . . . . 1 4 . 1 . . Open Door 8 | . . . . . . . . . . . . . . . . . . . 1 . . . . . 1 . . . 5 . . 1 . Open DSF 1 | . . . . . . 1 . . . . . . . . . . . . . . . . . . . . . . . . . . . Level Access Points 8 | . . . . . 1 1 . . . . . . . . . . . 1 . . 1 1 . . . . . . 1 . 1 1 . Branch Access Points 9 | . 1 . . . 1 1 . . . . . 1 . . . . 1 1 . . . 1 . . . . 1 . . . . 1 . Emergency Access Points 2 | . . . . . . . . . . . . . . . . . . . . . 1 . . . . . . . . . . . 1 Machine Index 5 | . . . . . . . . . . . . . . . . . 1 . . . . 1 . . . . . . 1 . . 1 1 Terminal Index 9 | . . . . . . 1 . . . . . 2 . . . . 1 . . . 2 . . . . . 1 1 . . 1 . . Fabricator Index 1 | . . . . . . . . . . . . . . . . . . . . . . . . . . . 1 . . . . . . Recycling Unit Index 1 | . . . . . . 1 . . . . . . . . . . . . . . . . . . . . . . . . . . . Scanalyzer Index 1 | . . . . . . . . . . . . . . . . . . . . . . . . . . . . 1 . . . . . Garrison Index 4 | . . . . . . 1 . . . . . . . . . . . . . . 1 . . . . . 1 1 . . . . . Alert Level 21 | . . . . . . 1 . . . . . 1 . . . . 3 2 . . 2 2 . . . . 2 2 2 . 2 . 2 Unreport Threat 19 | . . . . . 1 . . . . . . 1 . . . . 3 1 . . 4 1 . . . . . 1 2 . 3 1 1 Locate Traps 3 | . . . . . 1 . . . . . . 1 . . . . 1 . . . . . . . . . . . . . . . . Disarm Traps 3 | . . . . . . . . . . . . . . . . . 1 . . . . . . . . . . 1 . . . . 1 Reprogram Traps 5 | . . . . . 1 . . . . . . 1 . . . . 1 1 . . . . . . . . . . 1 . . . . Dispatch Records 1 | . . . . . . . . . . . . . . . . . . . . . 1 . . . . . . . . . . . . Maintenance Status 2 | . . . . . . . . . . . . . . . . . . . . . 1 . . . . . . . 1 . . . . Security Status 3 | . . . . . . . . . . . . . . . . . 1 . . . 1 1 . . . . . . . . . . . Surveillance Status 1 | . . . . . . . . . . . . . . . . . . . . . . . . . . . . . 1 . . . . Patrol Status 2 | . . . . . . . . . . . . . . . . . . . . . . . . . . . 1 . 1 . . . . Transport Status 1 | . . . . . . . . . . . . . . . . . . . . . 1 . . . . . . . . . . . . Investigation Status 1 | . . . . . . . . . . . . . . . . . . . . . 1 . . . . . . . . . . . . Recall Investigation 4 | . . . . . 1 1 . . . . . . . . . . . . . . . 1 . . . . . . 1 . . . . Recall Extermination 2 | . . . . . . . . . . . . . . . . . 2 . . . . . . . . . . . . . . . . Recall Reinforcements 4 | . . . . . 1 . . . . . . . . . . . . . . . 1 . . . . . . 1 1 . . . . Recall Assault 1 | . . . . . . . . . . . . . . . . . . . . . . . . . . . . . . . . . 1 Hauler Manifests 1 | . . . . . . . . . . . . . . . . . 1 . . . . . . . . . . . . . . . . Registered Components 6 | . 1 . . . . . . . . . . 1 . . . . 1 1 . . 1 . . . . . . . 1 . . . . Registered Prototypes 2 | . . . . . . 1 . . . . . . . . . . . . . . . . . . . . 1 . . . . . . Zone Layout 5 | . . . . . . 1 . . . . . . . . . . . . . . 1 1 . . . . . . . . 2 . . Activate Exoskeleton 1 | . . . . . . . . . . . . . . . . . . . . . . . . . . . . . 1 . . . . Disengage Seal 1 | . . . . . . . . . . . . . . . . . . . . . . . . . . . . . . . . . 1 Fabricator Hacks 20 | . . . . . . 4 . . . . . 1 . . . . 5 . . . . 5 . . . . . . . . 5 . . Network Status 3 | . . . . . . 1 . . . . . . . . . . 1 . . . . . . . . . . . . . 1 . . Load Schematic 6 | . . . . . . 1 . . . . . . . . . . 1 . . . . 2 . . . . . . . . 2 . . Build 11 | . . . . . . 2 . . . . . 1 . . . . 3 . . . . 3 . . . . . . . . 2 . . Repair Station Hacks 14 | . . . . . 4 . . . . . . . . . . . . . . . . . . . . . . . 8 2 . . . Scan Component 7 | . . . . . 2 . . . . . . . . . . . . . . . . . . . . . . . 4 1 . . . Repair 7 | . . . . . 2 . . . . . . . . . . . . . . . . . . . . . . . 4 1 . . . Recycling Unit Hacks 5 | . 1 . . . 1 1 . . . . . . . . . . 1 . . . . . . . . . . . . . . 1 . Retrieve Components 5 | . 1 . . . 1 1 . . . . . . . . . . 1 . . . . . . . . . . . . . . 1 . Scanalyzer 14 | . . . . . . . . . . . . . . . . . 4 . . . . . . . . . . . 8 . 2 . . Insert Component 10 | . . . . . . . . . . . . . . . . . 2 . . . . . . . . . . . 7 . 1 . . Analyze 4 | . . . . . . . . . . . . . . . . . 2 . . . . . . . . . . . 1 . 1 . . Garrison Access Hacks 13 | . . . . . . 2 . . . . . 1 . . . . 1 . . . 1 3 . . . . 1 1 1 . 1 1 . Seal Access 13 | . . . . . . 2 . . . . . 1 . . . . 1 . . . 1 3 . . . . 1 1 1 . 1 1 . Unauthorized Hacks 112 | . 2 . . . 15 7 . . . . . 8 . . . . 16 5 . . 5 12 . . . . 4 3 19 . 5 6 5 Terminals 83 | . 1 . . . 10 3 . . . . . 5 . . . . 8 5 . . 5 5 . . . . 4 3 18 . 5 6 5 Track 6 | . . . . . 1 . . . . . . . . . . . 1 . . . . . . . . . . . 3 . . 1 . Assimilate 3 | . . . . . 1 . . . . . . 1 . . . . . . . . . . . . . . . . . . . 1 . Botnet 59 | . 1 . . . 4 2 . . . . . 4 . . . . 5 5 . . 5 5 . . . . 4 3 9 . 5 2 5 Disrupt 9 | . . . . . 3 . . . . . . . . . . . 1 . . . . . . . . . . . 4 . . 1 . Operators 6 | . . . . . 1 1 . . . . . . . . . . 1 . . . . . . . . . . . 2 . . 1 . Fabricators 11 | . . . . . . . . . . . . . . . . . 5 . . . . 6 . . . . . . . . . . . Report 1 | . . . . . . . . . . . . . . . . . 1 . . . . . . . . . . . . . . . . Prioritize 5 | . . . . . . . . . . . . . . . . . 2 . . . . 3 . . . . . . . . . . . Fabnet 5 | . . . . . . . . . . . . . . . . . 2 . . . . 3 . . . . . . . . . . . Repair Stations 2 | . . . . . . . . . . . . 1 . . . . . . . . . . . . . . . . 1 . . . . Mechanics 2 | . . . . . . . . . . . . 1 . . . . . . . . . . . . . . . . 1 . . . . Recycling Units 10 | . 1 . . . 3 3 . . . . . 2 . . . . 1 . . . . . . . . . . . . . . . . Reject 1 | . . . . . 1 . . . . . . . . . . . . . . . . . . . . . . . . . . . . Mask 1 | . . . . . 1 . . . . . . . . . . . . . . . . . . . . . . . . . . . . Tunnel 8 | . 1 . . . 1 3 . . . . . 2 . . . . 1 . . . . . . . . . . . . . . . . Scanalyzers 1 | . . . . . . . . . . . . . . . . . 1 . . . . . . . . . . . . . . . . Extract 1 | . . . . . . . . . . . . . . . . . 1 . . . . . . . . . . . . . . . . Garrison Access 5 | . . . . . 2 1 . . . . . . . . . . 1 . . . . 1 . . . . . . . . . . . Reprogram 1 | . . . . . 1 . . . . . . . . . . . . . . . . . . . . . . . . . . . . Watchers 4 | . . . . . 1 1 . . . . . . . . . . 1 . . . . 1 . . . . . . . . . . . Data Cores Recovered 9 | . . . . . . . . . . . . 1 . . . . 1 1 . . . . . . . . 1 2 1 . . 1 1 Used 5 | . . . . . . . . . . . . 1 . . . . 1 1 . . . . . . . . . 1 . . . . 1 Hacking Detections 73 | . 7 . . . 3 7 . . . . . 5 . . . 1 6 3 1 . 5 7 . 1 . 1 4 . 10 . 7 2 3 Full Trace Events 9 | . 1 . . . . 2 . . . . . . . . . . 1 . . . . 2 . 1 . . . . . . 2 . . Feedback Events 1 | . . . . . . 1 . . . . . . . . . . . . . . . . . . . . . . . . . . . Hackware Fried 1 | . . . . . . 1 . . . . . . . . . . . . . . . . . . . . . . . . . . . Feedback Blocked . | . . . . . . . . . . . . . . . . . . . . . . . . . . . . . . . . . . Robot Schematics Acquired 12 | . . . . . . 1 . . 1 . . . . . 8 . . . . . . . . . . . . . 1 . 1 . . Robots Built 9 | . . . . . . 3 . . . . . 1 . . . . 2 . . . . 3 . . . . . . . . . . . Authchips . | . . . . . . . . . . . . . . . . . . . . . . . . . . . . . . . . . . Time 263 | . . . . . . 67 . . . . . 27 . . . . 76 . . . . 93 . . . . . . . . . . . Total Robot Build Rating 44 | . . . . . . 12 . . . . . 1 . . . . 10 . . . . 21 . . . . . . . . . . . Part Schematics Acquired 47 | . . . . . . 1 . . 16 . . 2 . . 10 . 9 . . . . . . . . . 3 2 1 . 3 . . Parts Built 9 | . . . . . . 2 . . . . . . . . . . 3 . . . . 2 . . . . . . . . 2 . . Authchips . | . . . . . . . . . . . . . . . . . . . . . . . . . . . . . . . . . . Time 581 | . . . . . . 117 . . . . . . . . . . 204 . . . . 128 . . . . . . . . 132 . . Total Part Build Rating 67 | . . . . . . 14 . . . . . . . . . . 21 . . . . 16 . . . . . . . . 16 . . Parts Repaired 6 | . . . . . 2 . . . . . . . . . . . . . . . . . . . . . . . 4 . . . . Time 246 | . . . . . 82 . . . . . . . . . . . . . . . . . . . . . . . 108 56 . . . Parts Recycled . | . . . . . . . . . . . . . . . . . . . . . . . . . . . . . . . . . . Recycled Matter . | . . . . . . . . . . . . . . . . . . . . . . . . . . . . . . . . . . Retrieved Matter . | . . . . . . . . . . . . . . . . . . . . . . . . . . . . . . . . . . Retrieved Components 35 | . 2 . . . 10 10 . . . . . . . . . . 3 . . . . . . . . . . . . . . 10 . Parts Scanalyzed 4 | . . . . . . . . . . . . . . . . . 2 . . . . . . . . . . . 1 . 1 . . Part Schematics Acquired 4 | . . . . . . . . . . . . . . . . . 2 . . . . . . . . . . . 1 . 1 . . Parts Damaged . | . . . . . . . . . . . . . . . . . . . . . . . . . . . . . . . . . . Bothacking | -11 -10 -10 -10 -9 -8 -7 -7 -7 -7 -7 -6 -6 -6 -6 -6 -5 -5 -5 -5 -5 -5 -4 -4 -4 -4 -3 -3 -3 -3 -2 -2 -1 -1 ------------ Run | Yrd Mat Min Exi Min Mat Fac Low Low Zio Dee Pro Fac Low Low Dat Pro Fac Ext Cet Arc Hub Fac Upp Upp War Pro Res Qua Sec Res Tes Acc Com Used RIF Installer . | . . . . . . . . . . . . . . . . . . . . . . . . . . . . . . . . . . Robots Hacked 26 | . . . . . . . . . . . . . . . . . . . . . . 4 2 2 4 . 5 2 3 3 1 . . Non-combat . | . . . . . . . . . . . . . . . . . . . . . . . . . . . . . . . . . . Combat 26 | . . . . . . . . . . . . . . . . . . . . . . 4 2 2 4 . 5 2 3 3 1 . . Robot Hacks Applied 1 | . . . . . . . . . . . . . . . . . . . . . . . . . . . . . . 1 . . . parse_system 1 | . . . . . . . . . . . . . . . . . . . . . . . . . . . . . . 1 . . . Manual 1 | . . . . . . . . . . . . . . . . . . . . . . . . . . . . . . 1 . . . Relay Couplers Released 2 | . . . . . . . . . . . . . . . . . . . . . . . . . . . . . . 2 . . . Machine Destruction 2 | . . . . . . . . . . . . . . . . . . . . . . . . . . . . . . 2 . . . Fabnet Peak Effective % 8 | . . . . . . . . . . . . . . . . . . . . . . 6 6 6 6 8 8 8 8 2 2 . . Autooverrided 25 | . . . . . . . . . . . . . . . . . . . . . . 4 2 2 4 . 5 2 3 2 1 . . Robots Rewired 12 | . . . 1 . . . . 2 . . . . . . . . . 7 . . . 1 . . . . . . . . 1 . . Allies Hacked 3 | . . . . . . . . . . . . . . . . . . . . . . 2 . . . . . . . . . 1 . Hacks Repelled . | . . . . . . . . . . . . . . . . . . . . . . . . . . . . . . . . . . Allies | -11 -10 -10 -10 -9 -8 -7 -7 -7 -7 -7 -6 -6 -6 -6 -6 -5 -5 -5 -5 -5 -5 -4 -4 -4 -4 -3 -3 -3 -3 -2 -2 -1 -1 -------- Run | Yrd Mat Min Exi Min Mat Fac Low Low Zio Dee Pro Fac Low Low Dat Pro Fac Ext Cet Arc Hub Fac Upp Upp War Pro Res Qua Sec Res Tes Acc Com Total Allies 65 | . . . 1 . . 3 . 2 . . . 2 . . . . 2 14 5 . . 8 2 2 4 . 5 2 3 7 2 1 . Largest Group 9 | . . . 1 1 1 3 3 2 2 2 1 2 1 1 1 . 2 5 9 7 6 4 1 1 2 . 2 1 1 5 1 1 . Highest-Rated Group 714 | . . . 21 21 21 60 60 40 40 40 20 30 10 10 10 . 28 271 714 653 500 191 116 47 94 . 151 47 82 710 147 26 . Highest-Rated Ally 362 | . . . 21 21 21 20 20 20 20 20 20 20 10 10 10 . 14 159 159 153 96 58 116 47 48 . 116 47 82 362 147 26 . Total Orders 6 | . . . . . . . . . . 1 . . 1 . . . . . 4 . . . . . . . . . . . . . . STAY 2 | . . . . . . . . . . 1 . . . . . . . . 1 . . . . . . . . . . . . . . ROAM 1 | . . . . . . . . . . . . . . . . . . . 1 . . . . . . . . . . . . . . FOLLOW 2 | . . . . . . . . . . . . . . . . . . . 2 . . . . . . . . . . . . . . TUNNEL 1 | . . . . . . . . . . . . . 1 . . . . . . . . . . . . . . . . . . . . Ally Attacks 328 | . . . . . 13 . 6 1 . 14 . . . . . . 2 35 31 10 51 20 6 4 1 . 11 10 7 78 28 . . Total Damage 11630 | . . . . . 198 . 191 . . 547 . . . . . . . 673 811 322 2768 553 297 140 38 . 232 223 103 2786 1748 . . Kills 52 | . . . . . 2 . 3 . . 7 . . . . . . . 2 2 3 16 . 3 1 1 . . . . 3 9 . . Allies Corrupted 2 | . . . . . . . . . . . . . . . . . . . . . 1 1 . . . . . . . . . . . Allies Melted . | . . . . . . . . . . . . . . . . . . . . . . . . . . . . . . . . . . Turrets Deployed 1 | . . . . . . . . . . . . . . . . . . . 1 . . . . . . . . . . . . . . Intel | -11 -10 -10 -10 -9 -8 -7 -7 -7 -7 -7 -6 -6 -6 -6 -6 -5 -5 -5 -5 -5 -5 -4 -4 -4 -4 -3 -3 -3 -3 -2 -2 -1 -1 ------- Run | Yrd Mat Min Exi Min Mat Fac Low Low Zio Dee Pro Fac Low Low Dat Pro Fac Ext Cet Arc Hub Fac Upp Upp War Pro Res Qua Sec Res Tes Acc Com Robot Analysis Total 43 | . 5 . . . 9 . . . . . . 5 . . . . 8 3 . . 2 5 . . . . 1 . 4 . 1 . . Derelict Logs Recovered 10 | . . . . . . . 1 1 3 . 3 . . 1 . . . . . . . . . 1 . . . . . . . . . Drone Launches . | . . . . . . . . . . . . . . . . . . . . . . . . . . . . . . . . . . Drone Recoveries . | . . . . . . . . . . . . . . . . . . . . . . . . . . . . . . . . . . Exploration | -11 -10 -10 -10 -9 -8 -7 -7 -7 -7 -7 -6 -6 -6 -6 -6 -5 -5 -5 -5 -5 -5 -4 -4 -4 -4 -3 -3 -3 -3 -2 -2 -1 -1 ------------- Run | Yrd Mat Min Exi Min Mat Fac Low Low Zio Dee Pro Fac Low Low Dat Pro Fac Ext Cet Arc Hub Fac Upp Upp War Pro Res Qua Sec Res Tes Acc Com Turns Passed 22061 | 92 670 309 566 223 903 574 327 249 400 752 300 412 178 227 144 312 532 444 305 385 810 1413 226 597 685 322 491 1223 2650 892 2399 1468 581 Spaces Moved 16614 | 51 466 178 421 173 511 621 497 256 726 607 413 596 209 336 85 271 691 406 175 96 494 973 159 445 537 246 382 921 1677 567 1243 869 316 Core 6 | 6 . . . . . . . . . . . . . . . . . . . . . . . . . . . . . . . . . Treads . | . . . . . . . . . . . . . . . . . . . . . . . . . . . . . . . . . . Legs 10797 | 45 466 178 421 173 324 . . . . . . . . . . . . 90 175 96 494 973 159 445 537 246 382 921 1677 567 1243 869 316 Wheels 46 | . . . . . . 46 . . . . . . . . . . . . . . . . . . . . . . . . . . . Hover 5765 | . . . . . 187 575 497 256 726 607 413 596 209 336 85 271 691 316 . . . . . . . . . . . . . . . Flight . | . . . . . . . . . . . . . . . . . . . . . . . . . . . . . . . . . . Fastest Speed 22 | 50 120 120 120 120 42 42 43 43 43 22 45 22 45 45 45 22 45 45 120 120 110 105 105 105 95 95 95 93 93 92 92 96 96 Average Speed 85 | 111 120 120 120 120 91 48 43 43 43 40 45 44 45 45 45 43 45 62 120 120 118 108 105 105 98 95 95 94 96 94 142 96 97 Slowest Speed 260 | 120 120 120 120 120 120 106 43 43 43 105 45 45 45 45 45 45 45 260 190 120 120 110 105 105 105 95 95 95 170 95 169 102 172 Overloaded Moves . | . . . . . . . . . . . . . . . . . . . . . . . . . . . . . . . . . . Propulsion Burnouts . | . . . . . . . . . . . . . . . . . . . . . . . . . . . . . . . . . . Robots Hopped . | . . . . . . . . . . . . . . . . . . . . . . . . . . . . . . . . . . Cave-ins Triggered 1 | . . . . . . . . . . . . . . . . . . . . . . . . . . . . . 1 . . . . Teleports 4 | . . . . . . . . . . . . . . . . . . . . . . . . . . . . 3 . . . 1 . Exploration Rate (%) 52 | 3 83 32 80 35 47 18 68 42 83 72 64 23 47 61 72 49 20 69 81 86 57 27 36 71 66 63 13 90 86 19 95 25 14 Regions Visited 33 Branch Regions 24 Pre-discovered Areas 13 | . 1 . 1 . 1 3 . 1 1 . . 2 . . 1 . 1 . . . . . . 1 . . . . . . . . . Known Exits Taken 29 | . 1 . . . 1 1 1 1 1 1 1 1 1 1 1 1 1 1 1 1 1 1 1 1 1 1 1 1 1 1 1 1 . Unknown Exits Taken 4 | 1 . 1 1 1 . . . . . . . . . . . . . . . . . . . . . . . . . . . . . Scrap Searched 28 | . . . . 2 . . 4 2 4 . 2 . 2 2 . 4 . . . . . . 3 3 . . . . . . . . . Spaces Dug 73 | . . . . . . . . . . 2 . . . . . . 2 2 . . 3 6 . 3 . . . . 33 5 6 11 . Terrain Destroyed 1618 | . . . . 1 2 . . . . 10 5 137 2 5 . 13 70 11 2 2 361 126 14 24 29 13 4 5 219 5 269 219 70 Melee 23 | . . . . . . . . . . . . . . . . . . . . . . . . . . . . . 10 5 1 7 . Projectile 260 | . . . . 1 2 . . . . 10 5 3 2 5 . 13 8 11 2 2 41 57 14 24 12 3 4 5 6 . 9 16 5 AOE 1335 | . . . . . . . . . . . . 134 . . . . 62 . . . 320 69 . . 17 10 . . 203 . 259 196 65 Terrain Rammed . | . . . . . . . . . . . . . . . . . . . . . . . . . . . . . . . . . . Walls Destroyed . | . . . . . . . . . . . . . . . . . . . . . . . . . . . . . . . . . . Machines Disabled . | . . . . . . . . . . . . . . . . . . . . . . . . . . . . . . . . . . Actions | -11 -10 -10 -10 -9 -8 -7 -7 -7 -7 -7 -6 -6 -6 -6 -6 -5 -5 -5 -5 -5 -5 -4 -4 -4 -4 -3 -3 -3 -3 -2 -2 -1 -1 --------- Run | Yrd Mat Min Exi Min Mat Fac Low Low Zio Dee Pro Fac Low Low Dat Pro Fac Ext Cet Arc Hub Fac Upp Upp War Pro Res Qua Sec Res Tes Acc Com Total 21906 | 65 513 223 456 179 818 817 604 369 808 1027 492 679 270 372 190 379 842 522 234 346 603 1155 178 504 639 295 473 1175 2396 791 1664 1352 476 Wait 2376 | . 4 . . 2 201 113 99 96 62 318 41 35 44 17 106 50 97 23 17 239 12 22 3 16 15 22 55 96 259 57 58 176 21 Move 16581 | 50 465 177 420 172 510 620 496 255 725 606 412 595 208 335 84 270 690 405 174 95 493 972 158 444 536 245 381 920 1676 566 1242 868 316 Hop . | . . . . . . . . . . . . . . . . . . . . . . . . . . . . . . . . . . Pick Up 67 | . . . 2 1 1 3 1 . 1 3 . 1 . . . . 3 . . . 1 1 . . 4 . 1 9 20 3 4 4 4 Fast Attach 261 | 6 1 3 3 . 15 12 1 . 6 16 . 4 . . . 2 3 6 7 . 15 5 . . 18 1 4 24 46 11 27 13 12 Attach 58 | . . . . . . 2 . . . . . 1 . . . 1 . . 1 . . 2 . . . . 1 8 22 2 5 5 8 Detach 35 | . . . . . 1 1 . . 2 . . 1 . . . . 1 . 1 . . 1 . . 1 . 1 4 14 1 2 . 4 Swap 50 | . 1 1 . . 2 . . . 1 4 1 3 . . . . . 1 1 . 3 2 . . 2 2 2 4 8 3 3 5 1 Drop 255 | . . 3 5 . 11 11 . . 7 20 . 4 . . . 1 4 5 8 . 9 5 . . 20 1 4 23 52 13 27 9 13 Fire 802 | 9 36 25 12 4 58 37 2 10 4 42 15 29 10 17 . 37 31 33 14 8 43 74 17 29 22 16 17 6 38 2 43 31 31 Melee 579 | . . . . . 5 . . . . . . . . . . . . . . . . . . . . . . 49 132 62 139 136 56 Ram . | . . . . . . . . . . . . . . . . . . . . . . . . . . . . . . . . . . Kick 1 | . . . . . . . . . . . . . . . . . . . . . . 1 . . . . . . . . . . . Crush . | . . . . . . . . . . . . . . . . . . . . . . . . . . . . . . . . . . Escape Stasis 4 | . . . . . . . . . . . . . . . . . . . . . . . . . . . . . . . 4 . . Rewire 48 | . . . 14 . . . . 5 . . . . . . . . . 24 . . . 2 . . . . . . . . 3 . . Trap . | . . . . . . . . . . . . . . . . . . . . . . . . . . . . . . . . . . Miscellaneous 789 | . 6 14 . . 14 18 5 3 . 18 23 6 8 3 . 18 13 25 11 4 27 68 . 15 21 8 7 32 129 71 107 105 10 Route ------- -11/Scrapyard -10/Materials (discovered 5 exits: [*Mat x3] / *Min x2) -10/Mines (discovered 2 exits: [*Mat] / *Exi) -10/Exiles (discovered 2 exits: [*Min x2]) -9/Mines -8/Materials (discovered 3 exits: *Fac x3) -7/Factory (discovered 6 exits: Fac x4 / *Low x2) -7/Lower Caves -7/Lower Caves -7/Zion -7/Deep Caves -6/Proximity Caves -6/Factory (discovered 5 exits: *Fac x3 / *Low x2) -6/Lower Caves -6/Lower Caves (discovered 2 exits: *Fac / *Dat) -6/Data Miner -5/Proximity Caves -5/Factory (discovered 6 exits: *Fac x2 / *Upp x2 / *Ext x2) -5/Extension (discovered 3 exits: *Fac x2 / *Cet) -5/Cetus (discovered 2 exits: *Fac / *Arc) -5/Archives (discovered 3 exits: *Fac / *Hub x2) -5/Hub_04(d) (discovered 4 exits: *Fac x4) -4/Factory (discovered 6 exits: *Res x4 / *Upp x2) -4/Upper Caves -4/Upper Caves (discovered 2 exits: *Res / *War) -4/Warlord -3/Proximity Caves -3/Research (discovered 5 exits: *Res x2 / Arm / *Qua x2) -3/Quarantine (discovered 2 exits: *Res / *Sec) -3/Section 7 -2/Research (discovered 2 exits: *Acc / *Tes) -2/Testing -1/Access (discovered 2 exits: *Sur / *Com) -1/Command History --------- Turn | Location | Event 1 | -11/Scrapyard | Upgraded with Propulsion slot (x1) 1 | -11/Scrapyard | Upgraded with Utility slot (x1) 1 | -11/Scrapyard | Upgraded with Weapon slot (x1) 4 | -11/Scrapyard | Discovered new exit (range 17) 93 | -11/Scrapyard | Entered Materials 203 | -10/Materials | Discovered new exit (range 13) 231 | -10/Materials | Discovered new exit (range 18) 284 | -10/Materials | Identified exit to Mines 310 | -10/Materials | Build established: Hacker-Skirmisher 389 | -10/Materials | Discovered new exit (range 12) 500 | -10/Materials | Central database locked down 579 | -10/Materials | Discovered new exit (range 12) 763 | -10/Materials | Entered Mines 765 | -10/Mines | Reached level 2 766 | -10/Mines | Upgraded with Weapon slot (x1) 781 | -10/Mines | Met a Derelict bent on vengeance 980 | -10/Mines | Discovered new exit (range 8) 982 | -10/Mines | Discovered new exit (range 15) 1067 | -10/Mines | Deemed a non-threat by the Exiles lab entrance 1072 | -10/Mines | Entered Exiles 1072 | -10/Exiles | Found Exiles lab destroyed 1090 | -10/Exiles | Discovered new exit (range 17) 1188 | -10/Exiles | Learned location of Zion (-7) 1313 | -10/Exiles | Opened EX-Vault 1626 | -10/Exiles | Discovered new exit (range 11) 1638 | -10/Exiles | Entered Mines 1638 | -9/Mines | Accompanied by 1 ally 1640 | -9/Mines | Reached level 3 1641 | -9/Mines | Upgraded with Utility slot (x1) 1665 | -9/Mines | YI-UF0 nonchalantly dropped a Grenade Launcher on the ground 1817 | -9/Mines | Discovered new exit (range 16) 1861 | -9/Mines | Entered Materials 1861 | -8/Materials | Accompanied by 1 ally 1863 | -8/Materials | Reached level 4 1863 | -8/Materials | Reached level 5 1863 | -8/Materials | Reached level 6 1863 | -8/Materials | Upgraded with Propulsion slot (x1) 1863 | -8/Materials | Upgraded with Utility slot (x1) 2041 | -8/Materials | Central database locked down 2204 | -8/Materials | Reached level 7 2211 | -8/Materials | Core integrity fell below 50% 2261 | -8/Materials | Identified exit to Factory 2265 | -8/Materials | Destroyed 8 combat bots 2352 | -8/Materials | Reached level 8 2423 | -8/Materials | Garrison activated, responded to threat 2516 | -8/Materials | Repaired Gauss Rifle 2555 | -8/Materials | Repaired Imp. Heat Sink 2587 | -8/Materials | Reached level 9 2603 | -8/Materials | Upgraded with Utility slot (x1) 2736 | -8/Materials | Build established: Hacker-Scout 2764 | -8/Materials | Entered Factory 2766 | -7/Factory | Reached level 10 2766 | -7/Factory | Upgraded with Propulsion slot (x1) 2814 | -7/Factory | Identified exit to DSF 2876 | -7/Factory | Identified exit to Lower Caves 2927 | -7/Factory | Fabricated Adv. Hardlight Generator (x2) 2976 | -7/Factory | Reached level 11 2976 | -7/Factory | Upgraded with Power slot (x1) 2995 | -7/Factory | Identified exit to Factory 3019 | -7/Factory | Hacking Suite fried by hacking feedback 3118 | -7/Factory | Destroyed 10 combat bots 3150 | -7/Factory | Reached level 12 3154 | -7/Factory | Upgraded with Utility slot (x1) 3192 | -7/Factory | Garrison activated, responded to threat 3332 | -7/Factory | Fabricated B-48 Gladiator? 3338 | -7/Factory | Entered Lower Caves 3338 | -7/Lower Caves | Accompanied by 3 allies 3339 | -7/Lower Caves | Encountered a Warlord checkpoint 3379 | -7/Lower Caves | Reached level 13 3592 | -7/Lower Caves | Discovered new exit (range 6) 3594 | -7/Lower Caves | Identified exit to Lower Caves 3665 | -7/Lower Caves | Entered another Lower Caves area 3665 | -7/Lower Caves | Accompanied by 1 ally 3764 | -7/Lower Caves | Attracted the attention of an 0b10 outpost 3810 | -7/Lower Caves | Destroyed 7 combat bots 3819 | -7/Lower Caves | Reached level 14 3840 | -7/Lower Caves | Discovered new exit (range 14) 3848 | -7/Lower Caves | Identified exit to Zion 3914 | -7/Lower Caves | Entered Zion 3914 | -7/Zion | Accompanied by 2 allies 3986 | -7/Zion | Learned Factory garrison access intel 4005 | -7/Zion | Learned location of Data Miner (-6) 4010 | -7/Zion | Learned Factory stockpile data 4045 | -7/Zion | Learned location of 2 exits from Factory 4122 | -7/Zion | Acquired unknown access codes intercepted by a Zionite 4156 | -7/Zion | Found GAL Module 4181 | -7/Zion | Found Prototype Special Weapon 4181 | -7/Zion | Identified RU-N14's Throwing Claymores 4268 | -7/Zion | Opened final containment barrier to the Deep Caves 4274 | -7/Zion | Discovered new exit (range 3) 4274 | -7/Zion | Saw the warning signs outside the Deep Caves entrance 4275 | -7/Zion | Identified exit to Deep Caves 4314 | -7/Zion | Entered Deep Caves 4314 | -7/Deep Caves | Accompanied by 2 allies 4415 | -7/Deep Caves | Build established: Wizard-Scout 4484 | -7/Deep Caves | Attacked by Z-Imprinter 4488 | -7/Deep Caves | Z-Facility disabled 4513 | -7/Deep Caves | Reached level 15 4513 | -7/Deep Caves | Destroyed Z-Imprinter 4539 | -7/Deep Caves | Found Prototype Protection 4539 | -7/Deep Caves | Identified Zio. Weapon Casing 4560 | -7/Deep Caves | Found Prototype Device 4560 | -7/Deep Caves | Identified Zio. Metafield Generator 4802 | -7/Deep Caves | Discovered new exit (range 6) 4820 | -7/Deep Caves | Identified exit to Proximity Caves 4904 | -7/Deep Caves | Build established: Hacker-Scout 5049 | -7/Deep Caves | Spotted AG-84191 5055 | -7/Deep Caves | Triggered Deep Caves wall 5055 | -7/Deep Caves | Spotted AS-39765 5055 | -7/Deep Caves | Spotted AS-72318 5055 | -7/Deep Caves | Found Deploy-a-Sentry 5066 | -7/Deep Caves | Entered Proximity Caves 5066 | -6/Proximity Caves | Accompanied by 1 ally 5102 | -6/Proximity Caves | Learned Factory emergency access door positions 5126 | -6/Proximity Caves | Learned 4 Factory zone layouts 5193 | -6/Proximity Caves | Reached level 16 5250 | -6/Proximity Caves | Destroyed 9 combat bots 5319 | -6/Proximity Caves | Discovered exit to Factory (range 8) 5366 | -6/Proximity Caves | Entered Factory 5366 | -6/Factory | Accompanied by 1 ally 5367 | -6/Factory | Identified exit to Factory 5368 | -6/Factory | Reached level 17 5368 | -6/Factory | Upgraded with Utility slot (x1) 5371 | -6/Factory | Loaded intel: 4 garrison access locations 5459 | -6/Factory | Identified exit to Lower Caves 5459 | -6/Factory | Central database locked down 5515 | -6/Factory | Reached level 18 5518 | -6/Factory | Upgraded with Utility slot (x1) 5674 | -6/Factory | Build established: Wizard-Scout 5677 | -6/Factory | Discovered exit to Factory (range 15) 5723 | -6/Factory | Fabricated T-07 Excavator? 5778 | -6/Factory | Entered Lower Caves 5778 | -6/Lower Caves | Accompanied by 1 ally 5831 | -6/Lower Caves | Encountered a Warlord checkpoint 5838 | -6/Lower Caves | Reached level 19 5893 | -6/Lower Caves | Discovered new exit (range 14) 5900 | -6/Lower Caves | Identified exit to Lower Caves 5956 | -6/Lower Caves | Entered another Lower Caves area 5956 | -6/Lower Caves | Accompanied by 1 ally 5965 | -6/Lower Caves | Discovered exit to Factory (range 12) 6003 | -6/Lower Caves | Attracted the attention of an 0b10 checkpoint 6033 | -6/Lower Caves | Learned Factory trap positions 6065 | -6/Lower Caves | Encountered a Warlord checkpoint 6123 | -6/Lower Caves | Spotted B-75 Beast 6144 | -6/Lower Caves | Destroyed B-75 Beast 6160 | -6/Lower Caves | Discovered new exit (range 12) 6165 | -6/Lower Caves | Identified exit to Data Miner 6183 | -6/Lower Caves | Entered Data Miner 6183 | -6/Data Miner | Accompanied by 1 ally 6183 | -6/Data Miner | Discovered new exit (range 7) 6191 | -6/Data Miner | Met Data Miner 6294 | -6/Data Miner | Learned location of Section 7 (-3) 6294 | -6/Data Miner | Acquired the access code to Warlord's prototype stash 6303 | -6/Data Miner | Received God Mode back door access code from Data Miner 6314 | -6/Data Miner | Identified exit to Proximity Caves 6327 | -6/Data Miner | Entered Proximity Caves 6327 | -5/Proximity Caves | Accompanied by 1 ally 6329 | -5/Proximity Caves | Reached level 20 6329 | -5/Proximity Caves | Spotter reported a threat 6330 | -5/Proximity Caves | Spotter reported a threat 6337 | -5/Proximity Caves | Attracted the attention of an 0b10 checkpoint 6438 | -5/Proximity Caves | Spotter reported a threat 6507 | -5/Proximity Caves | Destroyed 7 combat bots 6528 | -5/Proximity Caves | Attracted the attention of an 0b10 base 6530 | -5/Proximity Caves | Learned Extension garrison access intel 6530 | -5/Proximity Caves | Learned Extension trap positions 6530 | -5/Proximity Caves | Learned 8 Factory zone layouts 6530 | -5/Proximity Caves | Learned location of 2 exits from Lower Caves 6602 | -5/Proximity Caves | Destroyed 10 combat bots 6608 | -5/Proximity Caves | Reached level 21 6611 | -5/Proximity Caves | Upgraded with Utility slot (x1) 6617 | -5/Proximity Caves | Discovered exit to Factory (range 12) 6639 | -5/Proximity Caves | Entered Factory 6640 | -5/Factory | Identified exit to Upper Caves 6640 | -5/Factory | Identified exit to Extension 6641 | -5/Factory | Identified exit to Factory 6642 | -5/Factory | Loaded intel: 103 trap records 6819 | -5/Factory | Fabricated Biometal Leg (x2) 6895 | -5/Factory | Fabricated Lgt. Regenerative Plating (x1) 6939 | -5/Factory | Search patrols dispatched 6976 | -5/Factory | Spotted B-75 Beast 7011 | -5/Factory | Fabricated E-15 Imp (x2) 7070 | -5/Factory | Reached level 22 7134 | -5/Factory | Destroyed 9 combat bots 7171 | -5/Factory | Entered Extension 7172 | -5/Extension | Loaded intel: 22 trap records 7193 | -5/Extension | Rescued a captive Derelict 7193 | -5/Extension | Rescued a captive Derelict 7219 | -5/Extension | Rescued a captive Derelict 7221 | -5/Extension | Rescued a captive Derelict 7228 | -5/Extension | Identified exit to Cetus 7247 | -5/Extension | Rescued a captive Derelict 7309 | -5/Extension | Spotted B-75 Beast 7318 | -5/Extension | Spotted B-75 Beast 7325 | -5/Extension | Destroyed B-75 Beast 7334 | -5/Extension | Allies destroyed B-75 Beast 7380 | -5/Extension | Rescued a captive Derelict 7448 | -5/Extension | Upgraded with Weapon slot (x1) 7517 | -5/Extension | Lost 8 allies 7558 | -5/Extension | Rescued A7 7615 | -5/Extension | Entered Cetus 7615 | -5/Cetus | Accompanied by 5 allies (A7) 7620 | -5/Cetus | Acquired a Cetus Manufacturing Module code from A7 7632 | -5/Cetus | Spotted Cetus Guard 7632 | -5/Cetus | Spotted Cetus Guard 7633 | -5/Cetus | Reached level 23 7633 | -5/Cetus | Destroyed Cetus Guard 7634 | -5/Cetus | Spotted Cetus Guard 7637 | -5/Cetus | Spotted Cetus Guard 7651 | -5/Cetus | Destroyed Cetus Guard 7654 | -5/Cetus | Destroyed Cetus Guard 7658 | -5/Cetus | Destroyed Cetus Guard 7675 | -5/Cetus | DAS Turret deployed 7744 | -5/Cetus | Escorted A7 to Cetus Mainframe 7755 | -5/Cetus | Started Cetus Manufacturing Module 7767 | -5/Cetus | Discovered new exit (range 17) 7780 | -5/Cetus | Manufactured an Enhanced Grunt 7793 | -5/Cetus | Spotted Cetus Guard 7793 | -5/Cetus | Spotted Cetus Guard 7794 | -5/Cetus | Spotted Cetus Guard 7794 | -5/Cetus | Spotted Cetus Guard 7803 | -5/Cetus | Destroyed Cetus Guard 7804 | -5/Cetus | Allies destroyed Cetus Guard 7805 | -5/Cetus | Manufactured an Enhanced Grunt 7810 | -5/Cetus | Destroyed Cetus Guard 7817 | -5/Cetus | Destroyed Cetus Guard 7821 | -5/Cetus | Discovered exit to Factory (range 18) 7830 | -5/Cetus | Manufactured an Enhanced Grunt 7831 | -5/Cetus | Met Revision 17 7855 | -5/Cetus | Manufactured an Enhanced Grunt 7880 | -5/Cetus | Manufactured an Enhanced Grunt 7903 | -5/Cetus | Identified exit to Archives 7920 | -5/Cetus | Entered Archives 7920 | -5/Archives | Accompanied by 7 allies (A7) 7925 | -5/Archives | Received a hacking code to weaken MAIN.C 7966 | -5/Archives | Unable to access archive contents 7977 | -5/Archives | Discovered new exit (range 18) 8014 | -5/Archives | Discovered exit to Factory (range 13) 8048 | -5/Archives | Discovered new exit (range 15) 8063 | -5/Archives | Identified exit to Hub_04(d) 8098 | -5/Archives | Build established: Wizard-Tank 8305 | -5/Archives | Entered Hub_04(d) 8305 | -5/Hub_04(d) | Accompanied by 6 allies 8305 | -5/Hub_04(d) | Discovered exit to Factory (range 11) 8540 | -5/Hub_04(d) | Network Hub disabled 8563 | -5/Hub_04(d) | Spotted Lightning 8605 | -5/Hub_04(d) | First assault squad dispatched 8626 | -5/Hub_04(d) | Reached level 24 8655 | -5/Hub_04(d) | System corruption reached 10% 8671 | -5/Hub_04(d) | Lost 3 allies 8695 | -5/Hub_04(d) | Network Hub disabled 8881 | -5/Hub_04(d) | Spotted Lightning 8881 | -5/Hub_04(d) | Spotted Lightning 8920 | -5/Hub_04(d) | Destroyed Lightning 8927 | -5/Hub_04(d) | Destroyed Lightning 8973 | -5/Hub_04(d) | Destroyed Lightning 8979 | -5/Hub_04(d) | Found Prototype Device 8979 | -5/Hub_04(d) | Identified Exp. Phase Shifter 9004 | -5/Hub_04(d) | Found Prototype Energy Cannon 9004 | -5/Hub_04(d) | Identified EMDS 9091 | -5/Hub_04(d) | Network Hub disabled 9107 | -5/Hub_04(d) | Build established: Wizard-Skirmisher 9115 | -5/Hub_04(d) | Entered Factory 9121 | -4/Factory | Upgraded with Utility slot (x1) 9122 | -4/Factory | Spotted B-86 Titan 9147 | -4/Factory | Destroyed B-86 Titan 9223 | -4/Factory | Identified exit to Upper Caves 9223 | -4/Factory | Identified exit to Research 9348 | -4/Factory | Reached level 25 9692 | -4/Factory | Fabricated L-61 Swordsman? 9708 | -4/Factory | Fabricated Biometal Leg? 9865 | -4/Factory | First assault squad dispatched 9866 | -4/Factory | Local machine network offline 10119 | -4/Factory | Destroyed 11 combat bots 10237 | -4/Factory | Reached level 26 10258 | -4/Factory | Destroyed 7 combat bots 10528 | -4/Factory | Entered Upper Caves 10541 | -4/Upper Caves | Build established: Wizard-Gunner 10697 | -4/Upper Caves | Discovered new exit (range 19) 10716 | -4/Upper Caves | Attracted the attention of an 0b10 checkpoint 10753 | -4/Upper Caves | Identified exit to Upper Caves 10754 | -4/Upper Caves | Entered another Upper Caves area 10760 | -4/Upper Caves | Discovered exit to Research (range 18) 10953 | -4/Upper Caves | Attracted the attention of an 0b10 base 11044 | -4/Upper Caves | Destroyed 14 combat bots 11051 | -4/Upper Caves | Learned Armory terminal intel 11051 | -4/Upper Caves | Learned Factory terminal intel 11051 | -4/Upper Caves | Learned Factory security intel 11051 | -4/Upper Caves | Learned 6 Proximity Caves zone layouts 11051 | -4/Upper Caves | Learned 8 Research zone layouts 11051 | -4/Upper Caves | Learned location of 1 exit from Factory 11185 | -4/Upper Caves | Spotted B-86 Titan 11198 | -4/Upper Caves | Destroyed B-86 Titan 11330 | -4/Upper Caves | Discovered new exit (range 18) 11347 | -4/Upper Caves | Identified exit to Warlord 11351 | -4/Upper Caves | Entered Warlord 11521 | -4/Warlord | Met Warlord 11536 | -4/Warlord | Opened Warlord's prototype stash 11540 | -4/Warlord | Found Prototype Reactor 11540 | -4/Warlord | Identified Vortex Chain Reactor 11546 | -4/Warlord | Warlord's base attacked by MAIN.C 11557 | -4/Warlord | Found Prototype Device 11557 | -4/Warlord | Identified Thermal Barrier 11560 | -4/Warlord | Found Prototype Processor 11560 | -4/Warlord | Identified Spectral Analyzer 11581 | -4/Warlord | Found Prototype Hackware 11581 | -4/Warlord | Identified Ghost Barrier 11587 | -4/Warlord | Found Prototype Processor 11587 | -4/Warlord | Identified Exp. Targeting Computer 11730 | -4/Warlord | Found Prototype Energy Gun 11730 | -4/Warlord | Identified Vortex Shotgun 11735 | -4/Warlord | Found Prototype Piercing Weapon 11735 | -4/Warlord | Identified Vortex Lance 11738 | -4/Warlord | Found Prototype Energy Cannon 11738 | -4/Warlord | Identified Vortex Cannon 11747 | -4/Warlord | Found Vortex Shotgun 11754 | -4/Warlord | Found Vortex Lance 11861 | -4/Warlord | Reached level 27 11896 | -4/Warlord | Warlord forces counterattacked 11935 | -4/Warlord | Destroyed 13 combat bots 11940 | -4/Warlord | Lost 3 allies 11959 | -4/Warlord | Spotted Striker 11984 | -4/Warlord | Destroyed Striker 11987 | -4/Warlord | Spotted Executioner 12022 | -4/Warlord | Destroyed 9 combat bots 12026 | -4/Warlord | Discovered new exit (range 12) 12027 | -4/Warlord | Lost 11 allies 12034 | -4/Warlord | Identified exit to Proximity Caves 12036 | -4/Warlord | Entered Proximity Caves 12126 | -3/Proximity Caves | Attracted the attention of an 0b10 base 12161 | -3/Proximity Caves | Reached level 28 12192 | -3/Proximity Caves | Destroyed 13 combat bots 12203 | -3/Proximity Caves | Learned Extension security intel 12203 | -3/Proximity Caves | Learned 8 Factory zone layouts 12358 | -3/Proximity Caves | Entered Research 12359 | -3/Research | Identified exit to Research 12438 | -3/Research | Identified exit to Armory 12438 | -3/Research | Identified exit to Quarantine 12483 | -3/Research | Discovered exit to Research (range 12) 12558 | -3/Research | Revision forces began assault on 0b10 12632 | -3/Research | Central database locked down 12687 | -3/Research | Found Prototype Slashing Weapon 12687 | -3/Research | Identified Nanosword 12714 | -3/Research | Met up with Revision 17++ 12733 | -3/Research | Local machine network offline 12749 | -3/Research | Found Prototype Device 12749 | -3/Research | Identified Adv. Kinecellerator 12785 | -3/Research | Spotted B-86 Titan 12849 | -3/Research | Entered Quarantine 12851 | -3/Quarantine | Reached level 29 12851 | -3/Quarantine | Upgraded with Utility slot (x1) 12973 | -3/Quarantine | Found Alien Energy Cannon 12973 | -3/Quarantine | Identified Core Cannon 13006 | -3/Quarantine | Found Alien Impact Weapon 13006 | -3/Quarantine | Identified Core Stripper 13220 | -3/Quarantine | Local machine network offline 13274 | -3/Quarantine | Found Alien Reactor 13274 | -3/Quarantine | Identified Matter Drive 13317 | -3/Quarantine | Build established: Wizard-Gladiator 13354 | -3/Quarantine | Found Alien Artifact 13385 | -3/Quarantine | Cryocooling Duct disabled 13400 | -3/Quarantine | Ambient heat levels rising (+20) 13400 | -3/Quarantine | Non-combat units ordered to evacuate 13498 | -3/Quarantine | Found Alien Artifact 13600 | -3/Quarantine | Discovered exit to Research (range 15) 13617 | -3/Quarantine | Garrison activated, responded to threat 13767 | -3/Quarantine | Found Alien Artifact 13782 | -3/Quarantine | Identified Terrabomb 13782 | -3/Quarantine | Used Terrabomb 13791 | -3/Quarantine | Found Alien Artifact 13791 | -3/Quarantine | Identified Hpw. Transdimensional Reconstructor 13791 | -3/Quarantine | Warped through subspace 13865 | -3/Quarantine | Found Alien Artifact 13865 | -3/Quarantine | Identified Dimensional Node Initializer 13865 | -3/Quarantine | Initialized slip node 13871 | -3/Quarantine | Found Alien Artifact 13871 | -3/Quarantine | Identified Transdimensional Reconstructor 13871 | -3/Quarantine | Warped through subspace to slip node 13879 | -3/Quarantine | Found Transdimensional Reconstructor 13879 | -3/Quarantine | Warped through subspace to slip node 13881 | -3/Quarantine | Found Dimensional Node Initializer 13881 | -3/Quarantine | Initialized slip node 13883 | -3/Quarantine | Found Dimensional Node Initializer 13883 | -3/Quarantine | Initialized slip node 13891 | -3/Quarantine | Found Hpw. Transdimensional Reconstructor 13918 | -3/Quarantine | Found Alien Slashing Weapon 13918 | -3/Quarantine | Identified Sigix Broadsword 13925 | -3/Quarantine | Identified Subatomic Replicator 13925 | -3/Quarantine | Used Subatomic Replicator to replicate Sigix Broadsword 13968 | -3/Quarantine | Spotted Fortress 14022 | -3/Quarantine | Core integrity fell below 50% 14067 | -3/Quarantine | Discovered new exit (range 5) 14070 | -3/Quarantine | Identified exit to Section 7 14072 | -3/Quarantine | Entered Section 7 14074 | -3/Section 7 | Reached level 30 14084 | -3/Section 7 | Found Alien Artifact 14307 | -3/Section 7 | Found Alien Artifact 14334 | -3/Section 7 | Spotted S7 Guard 14348 | -3/Section 7 | Destroyed S7 Guard 14398 | -3/Section 7 | Found Alien Artifact 14398 | -3/Section 7 | Identified Microwarp Drive 14432 | -3/Section 7 | Found Alien Artifact 14479 | -3/Section 7 | Crushed by falling debris 14480 | -3/Section 7 | Discovered exit to Research (range 13) 14564 | -3/Section 7 | Identified Core Physics Calibrator 14564 | -3/Section 7 | Identified Core Reset Matrix 14564 | -3/Section 7 | Identified Integrated Dissipator 14564 | -3/Section 7 | Identified Integrated Reactor 14567 | -3/Section 7 | Upgraded with Power slot (x1) 14568 | -3/Section 7 | Installed Integrated Dissipator, increased core heat dissipation (+20) 14569 | -3/Section 7 | Installed Integrated Reactor, increased core energy generation (+10) 14621 | -3/Section 7 | Found Prototype Processor 14621 | -3/Section 7 | Identified Exp. Target Analyzer 14649 | -3/Section 7 | Repaired Adv. System Restoration Module 14721 | -3/Section 7 | Core integrity fell below 20% 14836 | -3/Section 7 | Found Integrated Dissipator 14836 | -3/Section 7 | Installed Integrated Dissipator, increased core heat dissipation (+20) 14914 | -3/Section 7 | Repaired Enh. Biometal Leg 14939 | -3/Section 7 | Spotted Alpha 7 14959 | -3/Section 7 | Spotted Alpha 7 14984 | -3/Section 7 | Destroyed Alpha 7 15005 | -3/Section 7 | Destroyed Alpha 7 15056 | -3/Section 7 | Found Prototype Device 15064 | -3/Section 7 | Identified Exp. ECM Suite 15067 | -3/Section 7 | Found Exp. Target Analyzer 15070 | -3/Section 7 | Found Prototype Ballistic Gun 15070 | -3/Section 7 | Identified Multirail 15072 | -3/Section 7 | First assault squad dispatched 15214 | -3/Section 7 | System corruption reached 10% 15264 | -3/Section 7 | Spotted S7 Guard 15304 | -3/Section 7 | Destroyed S7 Guard 15340 | -3/Section 7 | Found Alien Artifact 15375 | -3/Section 7 | Identified Navigation Efficiency Matrix 15438 | -3/Section 7 | Repaired Adv. System Restoration Module 15476 | -3/Section 7 | Repaired Exp. Myomer Leg 15527 | -3/Section 7 | Spotted S7 Guard 15579 | -3/Section 7 | Destroyed S7 Guard 15595 | -3/Section 7 | Found Prototype Protection 15595 | -3/Section 7 | Identified Hvy. Regenerative Plating 15604 | -3/Section 7 | Found Alien Artifact 15707 | -3/Section 7 | Identified Integrated Thermoelectric Network 15709 | -3/Section 7 | Installed Integrated Thermoelectric Network, gained heat-energy exchange potential 15895 | -3/Section 7 | Found Prototype Launcher 15895 | -3/Section 7 | Identified Hellfire Missile Launcher 15908 | -3/Section 7 | Found Tesla Bomb Launcher 15971 | -3/Section 7 | Spotted Executioner 15971 | -3/Section 7 | Spotted Executioner 15997 | -3/Section 7 | Destroyed Executioner 15997 | -3/Section 7 | Destroyed Executioner 16030 | -3/Section 7 | Found Terrabomb 16072 | -3/Section 7 | Spotted Striker 16191 | -3/Section 7 | Spotted Executioner 16192 | -3/Section 7 | Spotted Executioner 16197 | -3/Section 7 | Destroyed Executioner 16211 | -3/Section 7 | Destroyed Executioner 16219 | -3/Section 7 | Found Prototype Processor 16219 | -3/Section 7 | Identified Exp. Core Analyzer 16235 | -3/Section 7 | Found Exp. Core Analyzer 16312 | -3/Section 7 | Spotted B-99 Colossus 16374 | -3/Section 7 | Found Alien Artifact 16374 | -3/Section 7 | Identified LRC Storage 16374 | -3/Section 7 | Installed LRC Storage, increased inventory capacity (+2) 16416 | -3/Section 7 | Found Integrated Reactor 16416 | -3/Section 7 | Installed Integrated Reactor, increased core energy generation (+10) 16419 | -3/Section 7 | Found Integrated Reactor 16419 | -3/Section 7 | Installed Integrated Reactor, increased core energy generation (+10) 16525 | -3/Section 7 | Found Transdimensional Reconstructor 16589 | -3/Section 7 | Found Transdimensional Reconstructor 16722 | -3/Section 7 | Entered Research 16722 | -2/Research | Warlord forces began assault on 0b10 16723 | -2/Research | Core integrity fell below 50% 16724 | -2/Research | Reached level 31 16752 | -2/Research | Met up with Warlord 16777 | -2/Research | Found Prototype Device 16777 | -2/Research | Identified Exp. Thermal Shield 16832 | -2/Research | Research machine network offline 16857 | -2/Research | Took control of God Mode 16857 | -2/Research | Reached level 32 16857 | -2/Research | Attacked by Warlord forces 16858 | -2/Research | Attacked by Warlord 16859 | -2/Research | Spotted B1-6C9(H) 16859 | -2/Research | Spotted 8N-IG9(K) 16859 | -2/Research | Spotted VL-PME(K) 16879 | -2/Research | Allies destroyed 8N-IG9(K) 16895 | -2/Research | Destroyed Warlord 16897 | -2/Research | Warlord destroyed during the assault 16956 | -2/Research | Lost 5 allies 16956 | -2/Research | Found Prototype Processor 16956 | -2/Research | Identified Exp. Melee Analysis Suite 16998 | -2/Research | Spotted B-90 Cyclops 17070 | -2/Research | Discovered new exit (range 18) 17105 | -2/Research | Identified exit to Access 17282 | -2/Research | Destroyed 7 combat bots 17305 | -2/Research | Borebot progress halted 17475 | -2/Research | Discovered new exit (range 6) 17479 | -2/Research | Identified exit to Testing 17516 | -2/Research | Spotted Striker 17531 | -2/Research | Destroyed Striker 17531 | -2/Research | Spotted Executioner 17540 | -2/Research | Destroyed Executioner 17614 | -2/Research | Entered Testing 17616 | -2/Testing | Reached level 33 17826 | -2/Testing | Unstable Terrabomb Derivative detonated 17894 | -2/Testing | Found Prototype Energy Cannon 17894 | -2/Testing | Identified Imp. Potential Cannon 17927 | -2/Testing | Upgraded with Weapon slot (x1) 18015 | -2/Testing | Found Prototype Energy Cannon 18015 | -2/Testing | Identified Cld. Nova Cannon 18256 | -2/Testing | Found Prototype Launcher 18256 | -2/Testing | Identified Z-bomb Delivery System 18410 | -2/Testing | First assault squad dispatched 18423 | -2/Testing | Fabricated Femtoactuators (x1) 18435 | -2/Testing | Destroyed 7 combat bots 18457 | -2/Testing | Garrison activated, responded to threat 18520 | -2/Testing | Destroyed 9 combat bots 18575 | -2/Testing | Found Prototype Energy Cannon 18575 | -2/Testing | Identified Null Cannon 18748 | -2/Testing | Found Prototype Device 18748 | -2/Testing | Identified Exp. Shock Absorption System 18772 | -2/Testing | Build established: Hacker-Gladiator 18773 | -2/Testing | Spotted Striker 18782 | -2/Testing | Spotted Striker 18863 | -2/Testing | Destroyed Striker 18865 | -2/Testing | Spotted Alpha 7 18867 | -2/Testing | Destroyed Striker 18883 | -2/Testing | System corruption reached 10% 19116 | -2/Testing | Spotted PH-B3X3O2Z0VY 19143 | -2/Testing | Rewired PH-B3X3O2Z0VY 19413 | -2/Testing | Fabricated Adv. Actuator Array? 19518 | -2/Testing | Scanned by Researcher 19570 | -2/Testing | Reached level 34 19654 | -2/Testing | Garrison activated, responded to threat 19659 | -2/Testing | Upgraded with Propulsion slot (x1) 19725 | -2/Testing | Found Prototype Ballistic Cannon 19725 | -2/Testing | Identified Omega Cannon 19744 | -2/Testing | Found Prototype Energy Gun 19744 | -2/Testing | Identified Tachyon Dispersion Ray 19772 | -2/Testing | Found Prototype Processor 19772 | -2/Testing | Identified Exp. Signal Interpreter 20013 | -2/Testing | Entered Access 20360 | -1/Access | Discovered new exit (range 5) 20364 | -1/Access | Identified exit to Surface 20413 | -1/Access | Reached level 35 20418 | -1/Access | Identified exit to Command 20658 | -1/Access | Spotted B-99 Colossus 20758 | -1/Access | Warped through subspace 20761 | -1/Access | Destroyed 7 combat bots 20763 | -1/Access | First assault squad dispatched 20976 | -1/Access | Destroyed 8 combat bots 21095 | -1/Access | Reached level 36 21095 | -1/Access | High security lockdown imminent 21096 | -1/Access | Upgraded with Utility slot (x1) 21121 | -1/Access | Destroyed 15 combat bots 21167 | -1/Access | Energy Cycler disabled 21175 | -1/Access | High security lockdown engaged 21338 | -1/Access | Destroyed 22 combat bots 21481 | -1/Access | Entered Command 21537 | -1/Command | Disengaged cave seal 21599 | -1/Command | Spotted B-99 Colossus 21632 | -1/Command | Destroyed B-99 Colossus 21661 | -1/Command | Build established: Wizard-Gladiator 21731 | -1/Command | First assault squad dispatched 21765 | -1/Command | Destroyed M Guard 21765 | -1/Command | Reached level 37 21767 | -1/Command | Spotted Combat Programmer 21769 | -1/Command | Spotted Combat Programmer 21776 | -1/Command | Spotted M Guard 21779 | -1/Command | Destroyed Combat Programmer 21806 | -1/Command | Destroyed M Guard 21815 | -1/Command | Found Prototype Launcher 21815 | -1/Command | Identified Adv. Micro-nuke Launcher 21820 | -1/Command | Found Prototype Device 21820 | -1/Command | Identified AEGIS Remote Shield 21831 | -1/Command | Core integrity fell below 50% 21882 | -1/Command | Destroyed 8 combat bots 21884 | -1/Command | High security lockdown imminent 21896 | -1/Command | All MAIN.C guards destroyed 21950 | -1/Command | Met MAIN.C 21950 | -1/Command | Upgraded with Weapon slot (x1) 21960 | -1/Command | 0b10 Conduit disabled 21964 | -1/Command | High security lockdown engaged 22010 | -1/Command | Destroyed MAIN.C Shell 22013 | -1/Command | MAIN.C activated Command garrisons 22040 | -1/Command | Core integrity fell below 20% 22060 | -1/Command | System corruption reached 10% 22062 | -1/Command | Destroyed by P-80 Master with Gamma Rifle Last Messages --------------- 22016_ System corrupted: Adv. Actuator Array rejected. 22016_ Acquired Adv. Actuator Array. 22024_ Sigix Broadsword follow-up attack on MAIN.C. 22027_ Knocked back. 22033_ Sigix Broadsword follow-up attack on MAIN.C. 22033_ Knocked back. 22036_ System corrupted: Energy discharge (-390). 22036_ Knocked back. 22045_ Biometal Leg blasted off. 22045_ Knocked back. 22047_ Acquired Biometal Leg. 22049_ Knocked back. 22054_ Sigix Broadsword follow-up attack on MAIN.C. 22055_ Knocked back. 22058_ Sigix Broadsword follow-up attack on MAIN.C. 22059_ Knocked back. 22059_ C-30 ARC bursts open, deploying its payload. 22059_ P-80 Master unfolds itself. 22061_ Sigix Broadsword follow-up attack on MAIN.C. 22062_ Knocked back. Map ----- +----------------------------------------------------+ | ?????????????????????????????????????????????????? | | ?????????????????????????????????????????????????? | | ?????????????????????????????????????????????????? | | ?????????????????????????????????????????????????? | | ?????????????????????????????????????????????????? | | ?????????????????????????????????????????????????? | | ?????????????????????????????????????????????????? | | ?????????????????????????????????????????????????? | | ?????????????????????????????????????????????????? | | ?????????????????????????????????????????????????? | | ?????????????????????????????????????????????????? | | ?????????????????????????????????????????????????? | | ?????????????????????????????????????????????????? | | ?????????????????????????????????????????????????? | | ???????????????????##############????????????????? | | ?????????????????" """" #????????????????? | | ????????????????? "" ##???????????????? | | ??????????????"" "" ;################# | | ???????????????""""""" / | | ???????????????" """ p | | ?????????????? """""" p | | ??????????#"" """" ################## | | ??????????# " """ #????????????????? | | ??????????# " % #????????????????? | | ??????????# " %% ##???????????????? | | ?????????????"""" M @% ;#???????????????? | | ??????????#"" % ""##???????????????? | | ??????????# % ""#????????????????? | | ??????????# " #????????????????? | | ??????????# " #????????????????? | | ??????????" "" #????????????????? | | ??????????" " """" #????????????????? | | ??????????" " " ;#???????????????? | | ??????????# """ " # #??????????????? | | ??????????# " " """"""""###??????????????? | | ??????????? """ " " " #????????????????? | | ???????????######################????????????????? | | ?????????????????????????????????????????????????? | | ?????????????????????????????????????????????????? | | ?????????????????????????????????????????????????? | | ?????????????????????????????????????????????????? | | ?????????????????????????????????????????????????? | | ?????????????????????????????????????????????????? | | ?????????????????????????????????????????????????? | | ?????????????????????????????????????????????????? | | ?????????????????????????????????????????????????? | | ?????????????????????????????????????????????????? | | ?????????????????????????????????????????????????? | | ?????????????????????????????????????????????????? | | ?????????????????????????????????????????????????? | +----------------------------------------------------+ Best States ------------- Heat Dissipation 149 Energy Generation 119 Energy Capacity 1000 Matter Stores 500 Matter Capacity 500 Sight Range 26 Robot Scan Range 32 Terrain Scan Range 20 Terrain Scan Density 510 Jamming Range 12 Additional Mass Support 9 Armor Coverage 600 Resistance: KI 40 Resistance: TH 70 Resistance: EX 25 Resistance: EM 20 Resistance: I 20 Resistance: S 20 Resistance: P 20 Weapon Shielding 100 Melee Speed Boost 50 Phase Shifting 20 Evasion (%) 74 Targeting Accuracy 12 Melee Accuracy 20 Target Analysis 14 Core Analysis 11 Recoil Reduction 6 Energy Filtering 30 Particle Charging 15 Kinecelleration 50 Salvage Targeting 4 Offensive Hacking 61 Defensive Hacking 36 Item Schematics ----------------- Imp. Particle Charger | -7/Factory | Hacked Angular Momentum Engine | -7/Zion | Archive Imp. Deuterium Engine | -7/Zion | Archive Mak. System Shield | -7/Zion | Archive Matter Compressor | -7/Zion | Archive Hvy. Treads | -7/Zion | Archive Greatsword | -7/Zion | Archive EM Disruption Field | -7/Zion | Archive Gravmag System | -7/Zion | Archive Power Amplifier | -7/Zion | Archive Gauss Rifle | -7/Zion | Archive Thermal Shield | -7/Zion | Archive Imp. Field Recycling Unit | -7/Zion | Archive Beamcaster | -7/Zion | Archive Mak. Spear | -7/Zion | Archive Imp. Weapon Cycler | -7/Zion | Archive Tiamat Missile Launcher | -7/Zion | Archive Adv. Heat Sink | -6/Factory | Hacked Variable Charge Gun | -6/Factory | Hacked Combat Drone Bay | -6/Data Miner | Free Lgt. Regenerative Plating | -6/Data Miner | Free Cld. Nuclear Pulse Thruster | -6/Data Miner | Free Prc. Energy Filter | -6/Data Miner | Free Cld. Plasma Rifle | -6/Data Miner | Free Field Propulsion Array | -6/Data Miner | Free Point Defense Array | -6/Data Miner | Free Phase Gun | -6/Data Miner | Free Imp. Coolant Injector | -6/Data Miner | Free Imp. System Guard | -6/Data Miner | Free System Restoration Module | -5/Factory | Scanalyzed Biometal Leg | -5/Factory | Scanalyzed Cloaking Device | -5/Factory | Extracted Launcher Guidance Computer | -5/Factory | Extracted Lrn. Tractor Beam | -5/Factory | Extracted Com. Matter Pod | -5/Factory | Extracted Shock Absorption System | -5/Factory | Extracted Adv. Field Recycling Unit | -5/Factory | Hacked Wave Gun | -5/Factory | Hacked Nanoactuators | -3/Research | Hacked Adv. Actuator Array | -3/Research | Hacked Imp. Force Booster | -3/Research | Hacked Femtoactuators | -3/Quarantine | Hacked Enh. Nova Cannon | -3/Quarantine | Hacked Adv. System Restoration Module | -3/Section 7 | Scanalyzed Exp. Reaction Control System | -2/Testing | Scanalyzed Adv. Myomer Leg | -2/Testing | Archive Imp. Energy Mantle | -2/Testing | Archive Robot Schematics ------------------ B-48 Gladiator | -7/Factory | Hacked T-07 Excavator | -7/Zion | Archive S-27 Virus | -6/Data Miner | Free L-41 Fighter | -6/Data Miner | Free M-22 Extractor | -6/Data Miner | Free E-15 Imp | -6/Data Miner | Free G-50 Soldier | -6/Data Miner | Free H-77 Assassin | -6/Data Miner | Free A-27 Freighter | -6/Data Miner | Free G-67 Veteran | -6/Data Miner | Free X-77 Beamer | -3/Section 7 | Hacked R-10 Processor | -2/Testing | Archive Fabricated ------------ Adv. Hardlight Generator | x2 | -7/Factory | Preloaded B-48 Gladiator | x3 | -7/Factory T-07 Excavator | x1 | -6/Factory | Preloaded Biometal Leg | x2 | -5/Factory | Preloaded Lgt. Regenerative Plating | x1 | -5/Factory E-15 Imp | x2 | -5/Factory | Preloaded L-61 Swordsman | x3 | -4/Factory | Preloaded Biometal Leg | x2 | -4/Factory Femtoactuators | x1 | -2/Testing Adv. Actuator Array | x1 | -2/Testing Alien Tech Used ----------------- Core Cannon Core Stripper Matter Drive Terrabomb High-powered Transdimensional Reconstructor Dimensional Node Initializer Transdimensional Reconstructor Sigix Broadsword Subatomic Replicator Microwarp Drive Core Physics Calibrator Integrated Dissipator Integrated Reactor Integrated Thermoelectric Network LRC Storage Achievements -------------- Godhack Challenges ------------ None RPGLIKE | -11 -10 -10 -10 -9 -8 -7 -7 -7 -7 -7 -6 -6 -6 -6 -6 -5 -5 -5 -5 -5 -5 -4 -4 -4 -4 -3 -3 -3 -3 -2 -2 -1 -1 --------- Run | Yrd Mat Min Exi Min Mat Fac Low Low Zio Dee Pro Fac Low Low Dat Pro Fac Ext Cet Arc Hub Fac Upp Upp War Pro Res Qua Sec Res Tes Acc Com Levels Raised 36 | . . 1 . 1 6 3 1 1 . 1 1 2 1 . . 2 1 . 1 . 1 2 . . 1 1 . 1 1 2 2 2 1 XP Earned 58846 | 4000 1205 1500 200 1295 8187 4692 1105 1360 453 1185 2505 2800 606 369 220 2347 1806 976 548 303 1324 2766 400 565 782 1083 1368 1223 1695 2806 2032 3570 1570 XP Spent 57970 | 3925 . 1520 . 1300 9180 4260 1550 1600 . 480 . 5510 1000 . . 2600 . 1600 . . 695 3885 . . 1850 . 1500 3400 1625 1650 3025 3500 2315 Upgrades 109 | 17 . 5 . 2 31 9 3 2 . 2 . 4 1 . . 1 . 2 . . 3 5 . . 2 . 1 2 6 3 3 1 4 Power Slot 2 | . . . . . . 1 . . . . . . . . . . . . . . . . . . . . . . 1 . . . . Propulsion Slot 4 | 1 . . . . 1 1 . . . . . . . . . . . . . . . . . . . . . . . . 1 . . Utility Slot 11 | 1 . . . 1 2 1 . . . . . 2 . . . 1 . . . . . 1 . . . . . 1 . . . 1 . Weapon Slot 5 | 1 . 1 . . . . . . . . . . . . . . . 1 . . . . . . . . . . . . 1 . 1 Core Integrity 20 | . . . . . 11 . . . . . . . . . . . . . . . 1 . . . . . . . 5 . . . 3 Heat Dissipation 14 | 1 . . . . 2 6 . . . 2 . . . . . . . . . . 2 1 . . . . . . . . . . . Energy Generation 2 | . . . . . 1 . 1 . . . . . . . . . . . . . . . . . . . . . . . . . . Energy Storage 1 | . . . . . 1 . . . . . . . . . . . . . . . . . . . . . . . . . . . . Matter Storage 4 | . . . . . 2 . 1 . . . . . . . . . . . . . . 1 . . . . . . . . . . . Mass Support 2 | 1 . . . . 1 . . . . . . . . . . . . . . . . . . . . . . . . . . . . Inventory Capacity 6 | 1 . . . 1 . . 1 . . . . . 1 . . . . . . . . . . . 1 . 1 . . . . . . Sight Range 2 | 2 . . . . . . . . . . . . . . . . . . . . . . . . . . . . . . . . . Sensor Range 8 | 2 . 1 . . 4 . . . . . . . . . . . . . . . . . . . . . . . . . 1 . . Terrain Scan Density 5 | 1 . 2 . . 1 . . . . . . 1 . . . . . . . . . . . . . . . . . . . . . Ranged Accuracy 3 | 1 . . . . . . . . . . . . . . . . . 1 . . . . . . 1 . . . . . . . . Melee Accuracy 1 | . . . . . . . . . . . . . . . . . . . . . . . . . . . . 1 . . . . . Hack Attack % 5 | 1 . 1 . . 1 . . 1 . . . 1 . . . . . . . . . . . . . . . . . . . . . Hack Defense % 3 | 1 . . . . 1 . . 1 . . . . . . . . . . . . . . . . . . . . . . . . . KI Resistance % 4 | 1 . . . . 2 . . . . . . . . . . . . . . . . . . . . . . . . 1 . . . TH Resistance % 4 | 2 . . . . 1 . . . . . . . . . . . . . . . . . . . . . . . . 1 . . . EX Resistance % 1 | . . . . . . . . . . . . . . . . . . . . . . . . . . . . . . 1 . . . KI Damage % 1 | . . . . . . . . . . . . . . . . . . . . . . 1 . . . . . . . . . . . TH Damage % 1 | . . . . . . . . . . . . . . . . . . . . . . 1 . . . . . . . . . . . Protomatter Created 10633 | . 171 133 . . 128 177 . 40 . 87 249 145 60 53 . 226 129 287 99 . 254 1205 66 185 609 158 267 458 1259 558 1771 1753 106 Integrity Restored 16414 | . 108 267 . . 297 411 108 63 . 396 427 141 95 44 . 377 232 509 219 71 523 1292 . 253 457 155 97 642 2889 1553 2316 2244 228 Core 13200 | . 78 179 . . 297 411 108 63 . 396 219 141 24 33 . 277 158 109 129 18 357 931 . 181 332 108 63 427 2889 1214 2077 1753 228 Parts 3214 | . 30 88 . . . . . . . . 208 . 71 11 . 100 74 400 90 53 166 361 . 72 125 47 34 215 . 339 239 491 . Protomatter Decayed 8675 | . 100 94 . . . 40 . 67 . . 70 49 86 35 . 106 22 196 80 47 264 743 88 81 915 69 1047 178 217 2229 620 503 729 Game ------ Seed ThrowingCooledSlayer Manual? 0 Play Time 05:31:52 Cumulative 379.7 hours Start 2024.04.28 @ 21:56:58 End 2024.04.29 @ 03:57:55 Sessions 1 Manual Loads 0 Difficulty Adventurer Special Mode Winter2019/RPGLIKE Game No. 65 Rogue 13 Adventurer 47 Explorer 5 Win Type - Total 20 Types 8/0/5/4/1/0/1/1/0 Lore% 79 Gallery% 84 Achievement% 78 Wizard Run 0 Options --------- Layout 0 ASCII 0 Keyboard 0 Movement Numpad Keybinds 0 Fullscreen 1 Font 24/Smallcaps Map View 76x50 Zoom Use 0% Tactical HUD 1 Map Filters NONE Filters NONE Steam 1 RUN: 955d048a-8b5e-43a4-9bff-a5edd1790a9c